Workbook

Sheet 专业排名汇总表
A1: 学号 | B1: 排名 | C1: 必修课排名 | D1: 学号 | E1: 姓名 | F1: 班级 | G1: 德育成绩 | O1: 智育成绩 | U1: 体育成绩 | AB1: 综合测评总分 | AC1: 必修课优良率 | AD1: 体测是否一次性通过 | AE1: 是否挂科
G2: 班级互评分 | H2: 辅导员打分 | I2: 班级互评分×0.6 | J2: 辅导员打分×0.4 | K2: 德育加分 | L2: 德育扣分 | M2: 德育成绩 | N2: 德育成绩×0.2 | O2: 必修课加权平均分 | P2: 选修课加权平均分 | Q2: 智育成绩（必修课×0.8+选修课×0.2） | R2: 智育加分 | S2: 智育成绩 | T2: 智育成绩×0.7 | U2: 体育课成绩 | V2: 平时成绩 | W2: 体育课成绩×0.6 | X2: 平时成绩×0.4 | Y2: 体育加分 | Z2: 体育成绩 | AA2: 体育成绩×0.1
A3: 2022010364 | B3: 145 | C3: 132 | D3: 2022010376 | E3: 刘珣 | F3: 化工类22-1 | G3: 99.4518 | H3: 90.0000 | I3: 59.6711 | J3: 36.0000 | K3: 3.0000 | L3: 0.0000 | M3: 98.6711 | N3: 19.7342 | O3: 73.6951 | P3: 72.0000 | Q3: 73.3561 | R3: 0.0000 | S3: 73.3561 | T3: 51.3493 | U3: 69.5000 | V3: 57.2000 | W3: 41.7000 | X3: 22.8800 | Y3: 0.0000 | Z3: 64.5800 | AA3: 6.4580 | AB3: 77.5415 | AC3: 60.0000% | AD3: 否 | AE3: 是
A4: 2022010365 | B4: 98 | C4: 64 | D4: 2022010377 | E4: 刘超 | F4: 化工类22-1 | G4: 99.4518 | H4: 90.0000 | I4: 59.6711 | J4: 36.0000 | K4: 0.0000 | L4: 0.0000 | M4: 95.6711 | N4: 19.1342 | O4: 81.2518 | P4: 87.3333 | Q4: 82.4681 | R4: 0.0000 | S4: 82.4681 | T4: 57.7277 | U4: 66.0000 | V4: 56.5000 | W4: 39.6000 | X4: 22.6000 | Y4: 0.0000 | Z4: 62.2000 | AA4: 6.2200 | AB4: 83.0819 | AC4: 60.0000% | AD4: 否 | AE4: 否
A5: 2022010366 | B5: 89 | C5: 93 | D5: 2022010379 | E5: 孙科 | F5: 化工类22-1 | G5: 99.0902 | H5: 90.0000 | I5: 59.4541 | J5: 36.0000 | K5: 8.4700 | L5: 0.0000 | M5: 103.9241 | N5: 20.7848 | O5: 78.4024 | P5: 86.3333 | Q5: 79.9885 | R5: 0.0000 | S5: 79.9885 | T5: 55.9920 | U5: 74.0000 | V5: 58.0000 | W5: 44.4000 | X5: 23.2000 | Y5: 8.0000 | Z5: 75.6000 | AA5: 7.5600 | AB5: 84.3368 | AC5: 65.0000% | AD5: 否 | AE5: 是
A6: 2022010367 | B6: 163 | C6: 163 | D6: 2022010380 | E6: 张茂霖 | F6: 化工类22-1 | G6: 99.4518 | H6: 90.0000 | I6: 59.6711 | J6: 36.0000 | K6: 0.0000 | L6: (2.0000) | M6: 93.6711 | N6: 18.7342 | O6: 61.5122 | P6: 71.3333 | Q6: 63.4764 | R6: 0.0000 | S6: 63.4764 | T6: 44.4335 | U6: 61.5000 | V6: 52.7000 | W6: 36.9000 | X6: 21.0800 | Y6: 8.0000 | Z6: 65.9800 | AA6: 6.5980 | AB6: 69.7657 | AC6: 25.0000% | AD6: 否 | AE6: 是
A7: 2022010368 | B7: 158 | C7: 162 | D7: 2022010381 | E7: 耿智盖灵 | F7: 化工类22-1 | G7: 99.4518 | H7: 90.0000 | I7: 59.6711 | J7: 36.0000 | K7: 0.0000 | L7: 0.0000 | M7: 95.6711 | N7: 19.1342 | O7: 64.0000 | P7: 91.3333 | Q7: 69.4667 | R7: 0.0000 | S7: 69.4667 | T7: 48.6267 | U7: 60.0000 | V7: 53.2000 | W7: 36.0000 | X7: 21.2800 | Y7: 8.0000 | Z7: 65.2800 | AA7: 6.5280 | AB7: 74.2889 | AC7: 30.0000% | AD7: 否 | AE7: 是
A8: 2022010369 | B8: 34 | C8: 12 | D8: 2022010383 | E8: 刘子瑞 | F8: 化工类22-1 | G8: 99.3011 | H8: 90.0000 | I8: 59.5807 | J8: 36.0000 | K8: 3.0000 | L8: 0.0000 | M8: 98.5807 | N8: 19.7161 | O8: 88.2376 | P8: 92.0000 | Q8: 88.9901 | R8: 0.0000 | S8: 88.9901 | T8: 62.2931 | U8: 70.0000 | V8: 58.8000 | W8: 42.0000 | X8: 23.5200 | Y8: 8.0000 | Z8: 73.5200 | AA8: 7.3520 | AB8: 89.3612 | AC8: 85.0000% | AD8: 否 | AE8: 否
A9: 2022010370 | B9: 78 | C9: 35 | D9: 2022010384 | E9: 吴立新 | F9: 化工类22-1 | G9: 99.4518 | H9: 90.0000 | I9: 59.6711 | J9: 36.0000 | K9: 3.0000 | L9: 0.0000 | M9: 98.6711 | N9: 19.7342 | O9: 85.1176 | P9: 84.0000 | Q9: 84.8941 | R9: 0.0000 | S9: 84.8941 | T9: 59.4259 | U9: 73.0000 | V9: 55.6000 | W9: 43.8000 | X9: 22.2400 | Y9: 0.0000 | Z9: 66.0400 | AA9: 6.6040 | AB9: 85.7641 | AC9: 85.0000% | AD9: 否 | AE9: 否
A10: 2022010371 | B10: 143 | C10: 152 | D10: 2022010391 | E10: 王禹程 | F10: 化工类22-1 | G10: 99.4518 | H10: 90.0000 | I10: 59.6711 | J10: 36.0000 | K10: 0.0000 | L10: 0.0000 | M10: 95.6711 | N10: 19.1342 | O10: 70.0195 | P10: 94.2667 | Q10: 74.8689 | R10: 0.0000 | S10: 74.8689 | T10: 52.4083 | U10: 74.0000 | V10: 56.0000 | W10: 44.4000 | X10: 22.4000 | Y10: 0.0000 | Z10: 66.8000 | AA10: 6.6800 | AB10: 78.2225 | AC10: 60.0000% | AD10: 否 | AE10: 是
A11: 2022010372 | B11: 90 | C11: 79 | D11: 2022012312 | E11: 徐峥 | F11: 化工类22-1 | G11: 98.5778 | H11: 90.0000 | I11: 59.1467 | J11: 36.0000 | K11: 3.5000 | L11: 0.0000 | M11: 98.6467 | N11: 19.7293 | O11: 79.5082 | P11: 89.1111 | Q11: 81.4288 | R11: 2.0000 | S11: 83.4288 | T11: 58.4002 | U11: 66.5000 | V11: 53.7000 | W11: 39.9000 | X11: 21.4800 | Y11: 0.0000 | Z11: 61.3800 | AA11: 6.1380 | AB11: 84.2675 | AC11: 65.0000% | AD11: 否 | AE11: 否
A12: 2022010373 | B12: 122 | C12: 122 | D12: 2022010396 | E12: 邵兰贺 | F12: 化工类22-2 | G12: 98.3004 | H12: 90.0000 | I12: 58.9802 | J12: 36.0000 | K12: 6.2500 | L12: 0.0000 | M12: 101.2302 | N12: 20.2460 | O12: 74.7488 | P12: 71.9667 | Q12: 74.1924 | R12: 2.0000 | S12: 76.1924 | T12: 53.3347 | U12: 79.0000 | V12: 55.5000 | W12: 47.4000 | X12: 22.2000 | Y12: 4.0000 | Z12: 73.6000 | AA12: 7.3600 | AB12: 80.9407 | AC12: 55.0000% | AD12: 否 | AE12: 是
A13: 2022010374 | B13: 123 | C13: 102 | D13: 2022010403 | E13: 成思宇 | F13: 化工类22-2 | G13: 99.2459 | H13: 90.0000 | I13: 59.5475 | J13: 36.0000 | K13: 5.9500 | L13: 0.0000 | M13: 101.4975 | N13: 20.2995 | O13: 77.4634 | P13: 88.1000 | Q13: 79.5907 | R13: 0.0000 | S13: 79.5907 | T13: 55.7135 | U13: 53.0000 | V13: 29.0000 | W13: 31.8000 | X13: 11.6000 | Y13: 0.0000 | Z13: 43.4000 | AA13: 4.3400 | AB13: 80.3530 | AC13: 55.0000% | AD13: 否 | AE13: 是
A14: 2022010376 | B14: 103 | C14: 76 | D14: 2022010414 | E14: 潘恒懿 | F14: 化工类22-2 | G14: 98.8546 | H14: 90.0000 | I14: 59.3128 | J14: 36.0000 | K14: 4.8000 | L14: 0.0000 | M14: 100.1128 | N14: 20.0226 | O14: 79.8118 | P14: 77.3333 | Q14: 79.3161 | R14: 0.0000 | S14: 79.3161 | T14: 55.5213 | U14: 80.0000 | V14: 55.7000 | W14: 48.0000 | X14: 22.2800 | Y14: 0.0000 | Z14: 70.2800 | AA14: 7.0280 | AB14: 82.5718 | AC14: 40.0000% | AD14: 否 | AE14: 否
A15: 2022010377 | B15: 146 | C15: 141 | D15: 2022010417 | E15: 段少坤 | F15: 化工类22-2 | G15: 99.1155 | H15: 90.0000 | I15: 59.4693 | J15: 36.0000 | K15: 0.0000 | L15: 0.0000 | M15: 95.4693 | N15: 19.0939 | O15: 71.4488 | P15: 84.0667 | Q15: 73.9724 | R15: 0.0000 | S15: 73.9724 | T15: 51.7807 | U15: 69.5000 | V15: 44.5000 | W15: 41.7000 | X15: 17.8000 | Y15: 0.0000 | Z15: 59.5000 | AA15: 5.9500 | AB15: 76.8245 | AC15: 30.0000% | AD15: 否 | AE15: 是
A16: 2022010378 | B16: 150 | C16: 150 | D16: 2022010420 | E16: 曹坤阳 | F16: 化工类22-2 | G16: 99.0177 | H16: 90.0000 | I16: 59.4106 | J16: 36.0000 | K16: 0.0000 | L16: 0.0000 | M16: 95.4106 | N16: 19.0821 | O16: 70.6195 | P16: 87.6000 | Q16: 74.0156 | R16: 0.0000 | S16: 74.0156 | T16: 51.8109 | U16: 69.5000 | V16: 28.2000 | W16: 41.7000 | X16: 11.2800 | Y16: 0.0000 | Z16: 52.9800 | AA16: 5.2980 | AB16: 76.1910 | AC16: 45.0000% | AD16: 否 | AE16: 是
A17: 2022010379 | B17: 133 | C17: 120 | D17: 2022010424 | E17: 席振昌 | F17: 化工类22-2 | G17: 99.1155 | H17: 90.0000 | I17: 59.4693 | J17: 36.0000 | K17: 0.0000 | L17: 0.0000 | M17: 95.4693 | N17: 19.0939 | O17: 74.9012 | P17: 83.0000 | Q17: 76.5209 | R17: 0.0000 | S17: 76.5209 | T17: 53.5647 | U17: 74.5000 | V17: 55.0000 | W17: 44.7000 | X17: 22.0000 | Y17: 0.0000 | Z17: 66.7000 | AA17: 6.6700 | AB17: 79.3285 | AC17: 45.0000% | AD17: 否 | AE17: 是
A18: 2022010380 | B18: 110 | C18: 71 | D18: 2022010426 | E18: 赵群 | F18: 化工类22-2 | G18: 98.9198 | H18: 90.0000 | I18: 59.3519 | J18: 36.0000 | K18: 0.0000 | L18: 0.0000 | M18: 95.3519 | N18: 19.0704 | O18: 80.3200 | P18: 81.6667 | Q18: 80.5893 | R18: 0.0000 | S18: 80.5893 | T18: 56.4125 | U18: 72.5000 | V18: 55.1000 | W18: 43.5000 | X18: 22.0400 | Y18: 0.0000 | Z18: 65.5400 | AA18: 6.5540 | AB18: 82.0369 | AC18: 50.0000% | AD18: 否 | AE18: 否
A19: 2022010381 | B19: 128 | C19: 100 | D19: 2022010427 | E19: 周慧林 | F19: 化工类22-2 | G19: 99.2459 | H19: 90.0000 | I19: 59.5475 | J19: 36.0000 | K19: 0.0000 | L19: 0.0000 | M19: 95.5475 | N19: 19.1095 | O19: 77.6988 | P19: 76.8571 | Q19: 77.5305 | R19: 0.0000 | S19: 77.5305 | T19: 54.2713 | U19: 67.0000 | V19: 54.7000 | W19: 40.2000 | X19: 21.8800 | Y19: 0.0000 | Z19: 62.0800 | AA19: 6.2080 | AB19: 79.5888 | AC19: 35.0000% | AD19: 否 | AE19: 否
A20: 2022010382 | B20: 155 | C20: 153 | D20: 2022012313 | E20: 巴合加娜提·加冷 | F20: 化工类22-2 | G20: 99.0829 | H20: 90.0000 | I20: 59.4497 | J20: 36.0000 | K20: 1.9500 | L20: 0.0000 | M20: 97.3997 | N20: 19.4799 | O20: 69.9634 | P20: 78.6667 | Q20: 71.7041 | R20: 0.0000 | S20: 71.7041 | T20: 50.1928 | U20: 72.0000 | V20: 42.6000 | W20: 43.2000 | X20: 17.0400 | Y20: 0.0000 | Z20: 60.2400 | AA20: 6.0240 | AB20: 75.6968 | AC20: 30.0000% | AD20: 否 | AE20: 是
A21: 2022010383 | B21: 104 | C21: 83 | D21: 2022010440 | E21: 黄颖聪 | F21: 化工类22-3 | G21: 99.4201 | H21: 90.0000 | I21: 59.6521 | J21: 36.0000 | K21: 6.0000 | L21: 0.0000 | M21: 101.6521 | N21: 20.3304 | O21: 79.2471 | P21: 81.6667 | Q21: 79.7310 | R21: 0.0000 | S21: 79.7310 | T21: 55.8117 | U21: 72.0000 | V21: 51.5000 | W21: 43.2000 | X21: 20.6000 | Y21: 0.0000 | Z21: 63.8000 | AA21: 6.3800 | AB21: 82.5221 | AC21: 70.0000% | AD21: 否 | AE21: 否
A22: 2022010384 | B22: 87 | C22: 60 | D22: 2022010441 | E22: 白兆 | F22: 化工类22-3 | G22: 97.8891 | H22: 90.0000 | I22: 58.7335 | J22: 36.0000 | K22: 4.8000 | L22: 0.0000 | M22: 99.5335 | N22: 19.9067 | O22: 81.9459 | P22: 90.0909 | Q22: 83.5749 | R22: 0.0000 | S22: 83.5749 | T22: 58.5024 | U22: 68.5000 | V22: 50.4000 | W22: 41.1000 | X22: 20.1600 | Y22: 0.0000 | Z22: 61.2600 | AA22: 6.1260 | AB22: 84.5351 | AC22: 65.0000% | AD22: 否 | AE22: 否
A23: 2022010385 | B23: 91 | C23: 80 | D23: 2022010443 | E23: 杨志文 | F23: 化工类22-3 | G23: 99.0452 | H23: 90.0000 | I23: 59.4271 | J23: 36.0000 | K23: 6.6000 | L23: 0.0000 | M23: 102.0271 | N23: 20.4054 | O23: 79.4094 | P23: 82.6667 | Q23: 80.0609 | R23: 2.0000 | S23: 82.0609 | T23: 57.4426 | U23: 66.0000 | V23: 46.2000 | W23: 39.6000 | X23: 18.4800 | Y23: 0.0000 | Z23: 58.0800 | AA23: 5.8080 | AB23: 83.6560 | AC23: 55.0000% | AD23: 否 | AE23: 否
A24: 2022010386 | B24: 117 | C24: 87 | D24: 2022010447 | E24: 王冰宇 | F24: 化工类22-3 | G24: 99.3264 | H24: 90.0000 | I24: 59.5958 | J24: 36.0000 | K24: 6.5500 | L24: 0.0000 | M24: 102.1458 | N24: 20.4292 | O24: 78.8439 | P24: 75.9500 | Q24: 78.2651 | R24: 0.0000 | S24: 78.2651 | T24: 54.7856 | U24: 73.0000 | V24: 51.6000 | W24: 43.8000 | X24: 20.6400 | Y24: 0.0000 | Z24: 64.4400 | AA24: 6.4440 | AB24: 81.6588 | AC24: 70.0000% | AD24: 否 | AE24: 是
A25: 2022010387 | B25: 136 | C25: 112 | D25: 2022010453 | E25: 李成歆 | F25: 化工类22-3 | G25: 99.1389 | H25: 90.0000 | I25: 59.4834 | J25: 36.0000 | K25: 3.3300 | L25: 0.0000 | M25: 98.8134 | N25: 19.7627 | O25: 75.7718 | P25: 79.6667 | Q25: 76.5507 | R25: 0.0000 | S25: 76.5507 | T25: 53.5855 | U25: 61.0000 | V25: 46.5000 | W25: 36.6000 | X25: 18.6000 | Y25: 0.0000 | Z25: 55.2000 | AA25: 5.5200 | AB25: 78.8682 | AC25: 45.0000% | AD25: 否 | AE25: 是
A26: 2022010388 | B26: 50 | C26: 23 | D26: 2022010456 | E26: 吴金琪 | F26: 化工类22-3 | G26: 99.1077 | H26: 90.0000 | I26: 59.4646 | J26: 36.0000 | K26: 4.6000 | L26: 0.0000 | M26: 100.0646 | N26: 20.0129 | O26: 87.3176 | P26: 92.0000 | Q26: 88.2541 | R26: 0.0000 | S26: 88.2541 | T26: 61.7779 | U26: 67.0000 | V26: 50.0000 | W26: 40.2000 | X26: 20.0000 | Y26: 0.0000 | Z26: 60.2000 | AA26: 6.0200 | AB26: 87.8108 | AC26: 80.0000% | AD26: 否 | AE26: 否
A27: 2022010389 | B27: 120 | C27: 95 | D27: 2022010458 | E27: 赵帅 | F27: 化工类22-3 | G27: 99.1077 | H27: 90.0000 | I27: 59.4646 | J27: 36.0000 | K27: 4.8000 | L27: 0.0000 | M27: 100.2646 | N27: 20.0529 | O27: 78.3200 | P27: 83.3333 | Q27: 79.3227 | R27: 0.0000 | S27: 79.3227 | T27: 55.5259 | U27: 64.5000 | V27: 44.5000 | W27: 38.7000 | X27: 17.8000 | Y27: 0.0000 | Z27: 56.5000 | AA27: 5.6500 | AB27: 81.2288 | AC27: 55.0000% | AD27: 否 | AE27: 否
A28: 2022010390 | B28: 152 | C28: 155 | D28: 2022010460 | E28: 努尔斯巴·买提库尔班 | F28: 化工类22-4 | G28: 99.1910 | H28: 90.0000 | I28: 59.5146 | J28: 36.0000 | K28: 5.7132 | L28: 0.0000 | M28: 101.2278 | N28: 20.2456 | O28: 68.7059 | P28: 72.0909 | Q28: 69.3829 | R28: 0.0000 | S28: 69.3829 | T28: 48.5680 | U28: 79.0000 | V28: 58.0000 | W28: 47.4000 | X28: 23.2000 | Y28: 0.0000 | Z28: 70.6000 | AA28: 7.0600 | AB28: 75.8736 | AC28: 55.0000% | AD28: 否 | AE28: 是
A29: 2022010391 | B29: 147 | C29: 142 | D29: 2022010462 | E29: 胡咪 | F29: 化工类22-4 | G29: 99.1910 | H29: 90.0000 | I29: 59.5146 | J29: 36.0000 | K29: 2.6700 | L29: 0.0000 | M29: 98.1846 | N29: 19.6369 | O29: 71.4146 | P29: 88.2444 | Q29: 74.7806 | R29: 0.0000 | S29: 74.7806 | T29: 52.3464 | U29: 62.0000 | V29: 27.3000 | W29: 37.2000 | X29: 10.9200 | Y29: 0.0000 | Z29: 48.1200 | AA29: 4.8120 | AB29: 76.7953 | AC29: 55.0000% | AD29: 否 | AE29: 是
A30: 2022010392 | B30: 144 | C30: 118 | D30: 2022010474 | E30: 杨志远 | F30: 化工类22-4 | G30: 99.1608 | H30: 90.0000 | I30: 59.4965 | J30: 36.0000 | K30: 1.9500 | L30: 0.0000 | M30: 97.4465 | N30: 19.4893 | O30: 75.0366 | P30: 73.3143 | Q30: 74.6921 | R30: 0.0000 | S30: 74.6921 | T30: 52.2845 | U30: 66.5000 | V30: 57.1000 | W30: 39.9000 | X30: 22.8400 | Y30: 0.0000 | Z30: 62.7400 | AA30: 6.2740 | AB30: 78.0478 | AC30: 65.0000% | AD30: 否 | AE30: 是
A31: 2022010393 | B31: 73 | C31: 82 | D31: 2022010477 | E31: 张帅 | F31: 化工类22-4 | G31: 99.1608 | H31: 90.0000 | I31: 59.4965 | J31: 36.0000 | K31: 4.6000 | L31: 0.0000 | M31: 100.0965 | N31: 20.0193 | O31: 79.3176 | P31: 85.2000 | Q31: 80.4941 | R31: 0.0000 | S31: 80.4941 | T31: 56.3459 | U31: 84.0000 | V31: 48.8000 | W31: 50.4000 | X31: 19.5200 | Y31: 25.0000 | Z31: 94.9200 | AA31: 9.4920 | AB31: 85.8572 | AC31: 60.0000% | AD31: 否 | AE31: 否
A32: 2022010394 | B32: 66 | C32: 31 | D32: 2022010490 | E32: 严臻睿 | F32: 化工类22-4 | G32: 99.1910 | H32: 90.0000 | I32: 59.5146 | J32: 36.0000 | K32: 4.8000 | L32: 0.0000 | M32: 100.3146 | N32: 20.0629 | O32: 85.4565 | P32: 85.6667 | Q32: 85.4985 | R32: 0.0000 | S32: 85.4985 | T32: 59.8490 | U32: 73.0000 | V32: 58.9000 | W32: 43.8000 | X32: 23.5600 | Y32: 0.0000 | Z32: 67.3600 | AA32: 6.7360 | AB32: 86.6479 | AC32: 70.0000% | AD32: 否 | AE32: 否
A33: 2022010395 | B33: 157 | C33: 151 | D33: 2022010495 | E33: 何欣怡 | F33: 化工类22-5 | G33: 99.3359 | H33: 90.0000 | I33: 59.6015 | J33: 36.0000 | K33: 0.0000 | L33: 0.0000 | M33: 95.6015 | N33: 19.1203 | O33: 70.4390 | P33: 72.3333 | Q33: 70.8179 | R33: 0.0000 | S33: 70.8179 | T33: 49.5725 | U33: 70.0000 | V33: 53.8000 | W33: 42.0000 | X33: 21.5200 | Y33: 0.0000 | Z33: 63.5200 | AA33: 6.3520 | AB33: 75.0448 | AC33: 55.0000% | AD33: 否 | AE33: 是
A34: 2022012311 | B34: 165 | C34: 165 | D34: 2022010508 | E34: 郝政凯 | F34: 化工类22-5 | G34: 98.9431 | H34: 90.0000 | I34: 59.3659 | J34: 36.0000 | K34: 0.0000 | L34: 0.0000 | M34: 95.3659 | N34: 19.0732 | O34: 54.8537 | P34: 63.8667 | Q34: 56.6563 | R34: 0.0000 | S34: 56.6563 | T34: 39.6594 | U34: 67.5000 | V34: 55.5000 | W34: 40.5000 | X34: 22.2000 | Y34: 0.0000 | Z34: 62.7000 | AA34: 6.2700 | AB34: 65.0026 | AC34: 45.0000% | AD34: 否 | AE34: 是
A35: 2022012312 | B35: 64 | C35: 30 | D35: 2022010513 | E35: 陈心 | F35: 化工类22-5 | G35: 99.4265 | H35: 90.0000 | I35: 59.6559 | J35: 36.0000 | K35: 3.0000 | L35: 0.0000 | M35: 98.6559 | N35: 19.7312 | O35: 85.5488 | P35: 92.6667 | Q35: 86.9724 | R35: 0.0000 | S35: 86.9724 | T35: 60.8807 | U35: 68.5000 | V35: 53.9000 | W35: 41.1000 | X35: 21.5600 | Y35: 0.0000 | Z35: 62.6600 | AA35: 6.2660 | AB35: 86.8778 | AC35: 65.0000% | AD35: 否 | AE35: 否
A36: 2022010396 | B36: 160 | C36: 157 | D36: 2022010515 | E36: 郭家栋 | F36: 化工类22-5 | G36: 99.2150 | H36: 90.0000 | I36: 59.5290 | J36: 36.0000 | K36: 0.0000 | L36: 0.0000 | M36: 95.5290 | N36: 19.1058 | O36: 67.5585 | P36: 72.2857 | Q36: 68.5040 | R36: 0.0000 | S36: 68.5040 | T36: 47.9528 | U36: 60.0000 | V36: 49.7000 | W36: 36.0000 | X36: 19.8800 | Y36: 0.0000 | Z36: 55.8800 | AA36: 5.5880 | AB36: 72.6466 | AC36: 30.0000% | AD36: 否 | AE36: 是
A37: 2022010397 | B37: 153 | C37: 146 | D37: 2022010517 | E37: 郝信淳 | F37: 化工类22-5 | G37: 99.5171 | H37: 90.0000 | I37: 59.7103 | J37: 36.0000 | K37: 0.0000 | L37: 0.0000 | M37: 95.7103 | N37: 19.1421 | O37: 71.2415 | P37: 74.0667 | Q37: 71.8065 | R37: 0.0000 | S37: 71.8065 | T37: 50.2646 | U37: 69.0000 | V37: 54.1000 | W37: 41.4000 | X37: 21.6400 | Y37: 0.0000 | Z37: 63.0400 | AA37: 6.3040 | AB37: 75.7106 | AC37: 30.0000% | AD37: 否 | AE37: 是
A38: 2022010398 | B38: 96 | C38: 41 | D38: 2022010522 | E38: 熊俊程 | F38: 化工类22-5 | G38: 99.4265 | H38: 90.0000 | I38: 59.6559 | J38: 36.0000 | K38: 0.0000 | L38: 0.0000 | M38: 95.6559 | N38: 19.1312 | O38: 84.6098 | P38: 75.9000 | Q38: 82.8678 | R38: 0.0000 | S38: 82.8678 | T38: 58.0075 | U38: 69.5000 | V38: 52.2000 | W38: 41.7000 | X38: 20.8800 | Y38: 0.0000 | Z38: 62.5800 | AA38: 6.2580 | AB38: 83.3966 | AC38: 65.0000% | AD38: 否 | AE38: 否
A39: 2022010399 | B39: 149 | C39: 149 | D39: 2022010523 | E39: 章俊阳 | F39: 化工类22-5 | G39: 99.2150 | H39: 90.0000 | I39: 59.5290 | J39: 36.0000 | K39: 3.0000 | L39: 0.0000 | M39: 98.5290 | N39: 19.7058 | O39: 70.8098 | P39: 80.2000 | Q39: 72.6878 | R39: 0.0000 | S39: 72.6878 | T39: 50.8815 | U39: 66.0000 | V39: 51.2000 | W39: 39.6000 | X39: 20.4800 | Y39: 0.0000 | Z39: 60.0800 | AA39: 6.0080 | AB39: 76.5953 | AC39: 50.0000% | AD39: 否 | AE39: 是
A40: 2022010400 | B40: 154 | C40: 148 | D40: 2022012320 | E40: 阿布杜拉·居乃都拉 | F40: 化工类22-5 | G40: 99.5171 | H40: 90.0000 | I40: 59.7103 | J40: 36.0000 | K40: 0.0000 | L40: 0.0000 | M40: 95.7103 | N40: 19.1421 | O40: 70.9390 | P40: 74.3333 | Q40: 71.6179 | R40: 0.0000 | S40: 71.6179 | T40: 50.1325 | U40: 78.0000 | V40: 43.8000 | W40: 46.8000 | X40: 17.5200 | Y40: 0.0000 | Z40: 64.3200 | AA40: 6.4320 | AB40: 75.7066 | AC40: 50.0000% | AD40: 否 | AE40: 是
A41: 2022010401 | B41: 59 | C41: 52 | D41: 2022010364 | E41: 张姝瑶 | F41: 化工类22-1 | G41: 98.9997 | H41: 90.0000 | I41: 59.3998 | J41: 36.0000 | K41: 6.0340 | L41: 0.0000 | M41: 101.4338 | N41: 20.2868 | O41: 82.5882 | P41: 90.0000 | Q41: 84.0706 | R41: 0.0000 | S41: 84.0706 | T41: 58.8494 | U41: 86.0000 | V41: 70.8000 | W41: 51.6000 | X41: 28.3200 | Y41: 0.0000 | Z41: 79.9200 | AA41: 7.9920 | AB41: 87.1282 | AC41: 80.0000% | AD41: 是 | AE41: 否
A42: 2022010402 | B42: 12 | C42: 29 | D42: 2022010365 | E42: 杨秋瑶 | F42: 化工类22-1 | G42: 98.9395 | H42: 90.0000 | I42: 59.3637 | J42: 36.0000 | K42: 6.8000 | L42: 0.0000 | M42: 102.1637 | N42: 20.4327 | O42: 85.6561 | P42: 98.6000 | Q42: 88.2449 | R42: 2.0000 | S42: 90.2449 | T42: 63.1714 | U42: 92.0000 | V42: 83.6000 | W42: 55.2000 | X42: 33.4400 | Y42: 4.0000 | Z42: 92.6400 | AA42: 9.2640 | AB42: 92.8682 | AC42: 90.0000% | AD42: 是 | AE42: 否
A43: 2022010403 | B43: 41 | C43: 65 | D43: 2022010366 | E43: 张璐昕 | F43: 化工类22-1 | G43: 99.4518 | H43: 90.0000 | I43: 59.6711 | J43: 36.0000 | K43: 8.0500 | L43: 0.0000 | M43: 103.7211 | N43: 20.7442 | O43: 81.1800 | P43: 89.0000 | Q43: 82.7440 | R43: 0.0000 | S43: 82.7440 | T43: 57.9208 | U43: 84.5000 | V43: 80.6000 | W43: 50.7000 | X43: 32.2400 | Y43: 16.0000 | Z43: 98.9400 | AA43: 9.8940 | AB43: 88.5590 | AC43: 72.2222% | AD43: 是 | AE43: 否
A44: 2022010404 | B44: 86 | C44: 94 | D44: 2022010367 | E44: 周芹 | F44: 化工类22-1 | G44: 99.3011 | H44: 90.0000 | I44: 59.5807 | J44: 36.0000 | K44: 7.8000 | L44: (2.0000) | M44: 101.3807 | N44: 20.2761 | O44: 78.3835 | P44: 87.2000 | Q44: 80.1468 | R44: 0.0000 | S44: 80.1468 | T44: 56.1028 | U44: 83.0000 | V44: 80.5000 | W44: 49.8000 | X44: 32.2000 | Y44: 0.0000 | Z44: 82.0000 | AA44: 8.2000 | AB44: 84.5789 | AC44: 65.0000% | AD44: 是 | AE44: 是
A45: 2022010405 | B45: 10 | C45: 2 | D45: 2022010368 | E45: 张露 | F45: 化工类22-1 | G45: 99.4518 | H45: 90.0000 | I45: 59.6711 | J45: 36.0000 | K45: 8.8000 | L45: 0.0000 | M45: 104.4711 | N45: 20.8942 | O45: 91.9098 | P45: 91.9000 | Q45: 91.9078 | R45: 0.0000 | S45: 91.9078 | T45: 64.3355 | U45: 82.0000 | V45: 72.4000 | W45: 49.2000 | X45: 28.9600 | Y45: 0.0000 | Z45: 78.1600 | AA45: 7.8160 | AB45: 93.0457 | AC45: 85.0000% | AD45: 是 | AE45: 否
A46: 2022010406 | B46: 105 | C46: 110 | D46: 2022010369 | E46: 李越 | F46: 化工类22-1 | G46: 99.0902 | H46: 90.0000 | I46: 59.4541 | J46: 36.0000 | K46: 2.9360 | L46: 0.0000 | M46: 98.3901 | N46: 19.6780 | O46: 76.5412 | P46: 83.3333 | Q46: 77.8996 | R46: 0.0000 | S46: 77.8996 | T46: 54.5297 | U46: 84.0000 | V46: 80.1000 | W46: 50.4000 | X46: 32.0400 | Y46: 0.0000 | Z46: 82.4400 | AA46: 8.2440 | AB46: 82.4517 | AC46: 50.0000% | AD46: 是 | AE46: 否
A47: 2022010407 | B47: 161 | C47: 136 | D47: 2022010370 | E47: 马海霞 | F47: 化工类22-1 | G47: 99.4518 | H47: 90.0000 | I47: 59.6711 | J47: 36.0000 | K47: 4.0000 | L47: 0.0000 | M47: 99.6711 | N47: 19.9342 | O47: 72.0706 | P47: 69.3333 | Q47: 71.5231 | R47: 0.0000 | S47: 71.5231 | T47: 50.0662 | U47: 0.0000 | V47: 60.0000 | W47: 0.0000 | X47: 24.0000 | Y47: 0.0000 | Z47: 24.0000 | AA47: 2.4000 | AB47: 72.4004 | AC47: 50.0000% | AD47: 是 | AE47: 是
A48: 2022010408 | B48: 94 | C48: 81 | D48: 2022010371 | E48: 何丽鸿 | F48: 化工类22-1 | G48: 99.4518 | H48: 90.0000 | I48: 59.6711 | J48: 36.0000 | K48: 4.5332 | L48: 0.0000 | M48: 100.2043 | N48: 20.0409 | O48: 79.3929 | P48: 79.3333 | Q48: 79.3810 | R48: 0.0000 | S48: 79.3810 | T48: 55.5667 | U48: 83.0000 | V48: 73.3000 | W48: 49.8000 | X48: 29.3200 | Y48: 0.0000 | Z48: 79.1200 | AA48: 7.9120 | AB48: 83.5196 | AC48: 65.0000% | AD48: 是 | AE48: 是
A49: 2022010409 | B49: 82 | C49: 68 | D49: 2022010372 | E49: 史佳悦 | F49: 化工类22-1 | G49: 99.2710 | H49: 90.0000 | I49: 59.5626 | J49: 36.0000 | K49: 6.6666 | L49: 0.0000 | M49: 102.2292 | N49: 20.4458 | O49: 80.9412 | P49: 85.0000 | Q49: 81.7529 | R49: 0.0000 | S49: 81.7529 | T49: 57.2271 | U49: 76.5000 | V49: 68.0000 | W49: 45.9000 | X49: 27.2000 | Y49: 0.0000 | Z49: 73.1000 | AA49: 7.3100 | AB49: 84.9829 | AC49: 70.0000% | AD49: 是 | AE49: 否
A50: 2022010410 | B50: 7 | C50: 7 | D50: 2022010373 | E50: 王晴宇 | F50: 化工类22-1 | G50: 99.0902 | H50: 90.0000 | I50: 59.4541 | J50: 36.0000 | K50: 9.1300 | L50: 0.0000 | M50: 104.5841 | N50: 20.9168 | O50: 90.4588 | P50: 92.0000 | Q50: 90.7671 | R50: 1.0000 | S50: 91.7671 | T50: 64.2369 | U50: 86.0000 | V50: 75.4000 | W50: 51.6000 | X50: 30.1600 | Y50: 4.0000 | Z50: 85.7600 | AA50: 8.5760 | AB50: 93.7298 | AC50: 100.0000% | AD50: 是 | AE50: 否
A51: 2022010411 | B51: 14 | C51: 14 | D51: 2022010374 | E51: 袁佳怡 | F51: 化工类22-1 | G51: 99.1504 | H51: 90.0000 | I51: 59.4903 | J51: 36.0000 | K51: 5.8000 | L51: 0.0000 | M51: 101.2903 | N51: 20.2581 | O51: 88.1741 | P51: 90.0000 | Q51: 88.5393 | R51: 2.0000 | S51: 90.5393 | T51: 63.3775 | U51: 87.0000 | V51: 78.3000 | W51: 52.2000 | X51: 31.3200 | Y51: 5.0000 | Z51: 88.5200 | AA51: 8.8520 | AB51: 92.4876 | AC51: 90.0000% | AD51: 是 | AE51: 否
A52: 2022010412 | B52: 21 | C52: 46 | D52: 2022010378 | E52: 左丁伟 | F52: 化工类22-1 | G52: 98.9696 | H52: 90.0000 | I52: 59.3818 | J52: 36.0000 | K52: 5.9500 | L52: 0.0000 | M52: 101.3318 | N52: 20.2664 | O52: 83.4900 | P52: 87.0000 | Q52: 84.1920 | R52: 5.5000 | S52: 89.6920 | T52: 62.7844 | U52: 77.5000 | V52: 62.2000 | W52: 46.5000 | X52: 24.8800 | Y52: 8.0000 | Z52: 79.3800 | AA52: 7.9380 | AB52: 90.9888 | AC52: 66.6667% | AD52: 是 | AE52: 否
A53: 2022010413 | B53: 79 | C53: 56 | D53: 2022010382 | E53: 张铸 | F53: 化工类22-1 | G53: 99.0902 | H53: 90.0000 | I53: 59.4541 | J53: 36.0000 | K53: 3.5000 | L53: 0.0000 | M53: 98.9541 | N53: 19.7908 | O53: 82.1694 | P53: 82.0000 | Q53: 82.1355 | R53: 0.0000 | S53: 82.1355 | T53: 57.4949 | U53: 79.0000 | V53: 66.3000 | W53: 47.4000 | X53: 26.5200 | Y53: 8.0000 | Z53: 81.9200 | AA53: 8.1920 | AB53: 85.4777 | AC53: 80.0000% | AD53: 是 | AE53: 是
A54: 2022010414 | B54: 42 | C54: 21 | D54: 2022010385 | E54: 龚泽恩 | F54: 化工类22-1 | G54: 98.3970 | H54: 90.0000 | I54: 59.0382 | J54: 36.0000 | K54: 4.5340 | L54: 0.0000 | M54: 99.5722 | N54: 19.9144 | O54: 87.4212 | P54: 84.0000 | Q54: 86.7369 | R54: 0.0000 | S54: 86.7369 | T54: 60.7159 | U54: 82.0000 | V54: 73.5000 | W54: 49.2000 | X54: 29.4000 | Y54: 0.0000 | Z54: 78.6000 | AA54: 7.8600 | AB54: 88.4903 | AC54: 90.0000% | AD54: 是 | AE54: 否
A55: 2022010417 | B55: 43 | C55: 19 | D55: 2022010386 | E55: 李陶然 | F55: 化工类22-1 | G55: 99.4518 | H55: 90.0000 | I55: 59.6711 | J55: 36.0000 | K55: 4.8500 | L55: 0.0000 | M55: 100.5211 | N55: 20.1042 | O55: 87.7294 | P55: 87.2500 | Q55: 87.6335 | R55: 0.0000 | S55: 87.6335 | T55: 61.3435 | U55: 75.0000 | V55: 60.0000 | W55: 45.0000 | X55: 24.0000 | Y55: 0.0000 | Z55: 69.0000 | AA55: 6.9000 | AB55: 88.3477 | AC55: 89.4737% | AD55: 是 | AE55: 是
A56: 2022010418 | B56: 29 | C56: 15 | D56: 2022010387 | E56: 陈方旭 | F56: 化工类22-1 | G56: 99.4518 | H56: 90.0000 | I56: 59.6711 | J56: 36.0000 | K56: 3.4000 | L56: 0.0000 | M56: 99.0711 | N56: 19.8142 | O56: 88.0098 | P56: 91.9000 | Q56: 88.7878 | R56: 0.0000 | S56: 88.7878 | T56: 62.1515 | U56: 79.5000 | V56: 71.3000 | W56: 47.7000 | X56: 28.5200 | Y56: 0.0000 | Z56: 76.2200 | AA56: 7.6220 | AB56: 89.5877 | AC56: 85.0000% | AD56: 是 | AE56: 否
A57: 2022010419 | B57: 112 | C57: 117 | D57: 2022010388 | E57: 缪祥麟 | F57: 化工类22-1 | G57: 99.4518 | H57: 90.0000 | I57: 59.6711 | J57: 36.0000 | K57: 4.0000 | L57: 0.0000 | M57: 99.6711 | N57: 19.9342 | O57: 75.1317 | P57: 87.8667 | Q57: 77.6787 | R57: 0.0000 | S57: 77.6787 | T57: 54.3751 | U57: 83.5000 | V57: 65.6000 | W57: 50.1000 | X57: 26.2400 | Y57: 0.0000 | Z57: 76.3400 | AA57: 7.6340 | AB57: 81.9433 | AC57: 50.0000% | AD57: 是 | AE57: 否
A58: 2022010420 | B58: 65 | C58: 108 | D58: 2022010389 | E58: 牛浩镔 | F58: 化工类22-1 | G58: 99.2408 | H58: 90.0000 | I58: 59.5445 | J58: 36.0000 | K58: 4.2500 | L58: 0.0000 | M58: 99.7945 | N58: 19.9589 | O58: 77.0143 | P58: 90.0000 | Q58: 79.6114 | R58: 6.0000 | S58: 85.6114 | T58: 59.9280 | U58: 75.0000 | V58: 60.0000 | W58: 45.0000 | X58: 24.0000 | Y58: 0.0000 | Z58: 69.0000 | AA58: 6.9000 | AB58: 86.7869 | AC58: 66.6667% | AD58: 是 | AE58: 是
A59: 2022010421 | B59: 52 | C59: 37 | D59: 2022010390 | E59: 申溱 | F59: 化工类22-1 | G59: 98.9395 | H59: 90.0000 | I59: 59.3637 | J59: 36.0000 | K59: 4.8000 | L59: 0.0000 | M59: 100.1637 | N59: 20.0327 | O59: 84.9976 | P59: 93.6667 | Q59: 86.7315 | R59: 0.0000 | S59: 86.7315 | T59: 60.7120 | U59: 72.5000 | V59: 66.9000 | W59: 43.5000 | X59: 26.7600 | Y59: 0.0000 | Z59: 70.2600 | AA59: 7.0260 | AB59: 87.7708 | AC59: 85.0000% | AD59: 是 | AE59: 否
A60: 2022010422 | B60: 22 | C60: 10 | D60: 2022010392 | E60: 吴照飞 | F60: 化工类22-1 | G60: 99.3011 | H60: 90.0000 | I60: 59.5807 | J60: 36.0000 | K60: 5.7000 | L60: 0.0000 | M60: 101.2807 | N60: 20.2561 | O60: 88.4894 | P60: 92.2500 | Q60: 89.2415 | R60: 0.0000 | S60: 89.2415 | T60: 62.4691 | U60: 84.0000 | V60: 71.3000 | W60: 50.4000 | X60: 28.5200 | Y60: 0.0000 | Z60: 78.9200 | AA60: 7.8920 | AB60: 90.6172 | AC60: 95.0000% | AD60: 是 | AE60: 是
A61: 2022010423 | B61: 28 | C61: 18 | D61: 2022010393 | E61: 徐森 | F61: 化工类22-1 | G61: 99.0299 | H61: 90.0000 | I61: 59.4179 | J61: 36.0000 | K61: 5.6000 | L61: 0.0000 | M61: 101.0179 | N61: 20.2036 | O61: 87.7425 | P61: 92.0000 | Q61: 88.5940 | R61: 0.0000 | S61: 88.5940 | T61: 62.0158 | U61: 80.5000 | V61: 63.8000 | W61: 48.3000 | X61: 25.5200 | Y61: 0.0000 | Z61: 73.8200 | AA61: 7.3820 | AB61: 89.6014 | AC61: 94.4444% | AD61: 是 | AE61: 否
A62: 2022010424 | B62: 55 | C62: 47 | D62: 2022010394 | E62: 张之翼 | F62: 化工类22-1 | G62: 99.0902 | H62: 90.0000 | I62: 59.4541 | J62: 36.0000 | K62: 4.0000 | L62: 0.0000 | M62: 99.4541 | N62: 19.8908 | O62: 83.3341 | P62: 97.3333 | Q62: 86.1340 | R62: 0.0000 | S62: 86.1340 | T62: 60.2938 | U62: 80.0000 | V62: 62.3000 | W62: 48.0000 | X62: 24.9200 | Y62: 0.0000 | Z62: 72.9200 | AA62: 7.2920 | AB62: 87.4766 | AC62: 75.0000% | AD62: 是 | AE62: 是
A63: 2022010425 | B63: 162 | C63: 159 | D63: 2022010395 | E63: 赵志帆 | F63: 化工类22-1 | G63: 98.9696 | H63: 90.0000 | I63: 59.3818 | J63: 36.0000 | K63: 0.0000 | L63: 0.0000 | M63: 95.3818 | N63: 19.0764 | O63: 64.7561 | P63: 66.3333 | Q63: 65.0715 | R63: 0.0000 | S63: 65.0715 | T63: 45.5501 | U63: 58.5000 | V63: 60.1000 | W63: 35.1000 | X63: 24.0400 | Y63: 0.0000 | Z63: 59.1400 | AA63: 5.9140 | AB63: 70.5404 | AC63: 45.0000% | AD63: 是 | AE63: 是
A64: 2022010426 | B64: 135 | C64: 138 | D64: 2022012311 | E64: 布威麦尔耶姆·麦麦提图尔荪 | F64: 化工类22-1 | G64: 99.0902 | H64: 90.0000 | I64: 59.4541 | J64: 36.0000 | K64: 2.0000 | L64: 0.0000 | M64: 97.4541 | N64: 19.4908 | O64: 71.8376 | P64: 82.7500 | Q64: 74.0201 | R64: 0.0000 | S64: 74.0201 | T64: 51.8141 | U64: 84.0000 | V64: 69.2000 | W64: 50.4000 | X64: 27.6800 | Y64: 0.0000 | Z64: 78.0800 | AA64: 7.8080 | AB64: 79.1129 | AC64: 65.0000% | AD64: 是 | AE64: 是
A65: 2022010427 | B65: 20 | C65: 11 | D65: 2022010397 | E65: 李安然 | F65: 化工类22-2 | G65: 99.1807 | H65: 90.0000 | I65: 59.5084 | J65: 36.0000 | K65: 4.0000 | L65: 0.0000 | M65: 99.5084 | N65: 19.9017 | O65: 88.2682 | P65: 89.6667 | Q65: 88.5479 | R65: 2.0000 | S65: 90.5479 | T65: 63.3835 | U65: 82.5000 | V65: 72.6000 | W65: 49.5000 | X65: 29.0400 | Y65: 0.0000 | Z65: 78.5400 | AA65: 7.8540 | AB65: 91.1392 | AC65: 90.0000% | AD65: 是 | AE65: 否
A66: 2022012313 | B66: 134 | C66: 154 | D66: 2022010398 | E66: 杨慧 | F66: 化工类22-2 | G66: 99.8980 | H66: 90.0000 | I66: 59.9388 | J66: 36.0000 | K66: 6.8000 | L66: 0.0000 | M66: 102.7388 | N66: 20.5478 | O66: 69.3049 | P66: 82.2500 | Q66: 71.8939 | R66: 0.0000 | S66: 71.8939 | T66: 50.3257 | U66: 86.0000 | V66: 80.9000 | W66: 51.6000 | X66: 32.3600 | Y66: 0.0000 | Z66: 83.9600 | AA66: 8.3960 | AB66: 79.2695 | AC66: 62.5000% | AD66: 是 | AE66: 是
A67: 2022012314 | B67: 45 | C67: 69 | D67: 2022010399 | E67: 邱绮慧 | F67: 化工类22-2 | G67: 99.9632 | H67: 90.0000 | I67: 59.9779 | J67: 36.0000 | K67: 6.6666 | L67: 0.0000 | M67: 102.6445 | N67: 20.5289 | O67: 80.7756 | P67: 95.9778 | Q67: 83.8160 | R67: 0.0000 | S67: 83.8160 | T67: 58.6712 | U67: 88.5000 | V67: 87.7000 | W67: 53.1000 | X67: 35.0800 | Y67: 0.0000 | Z67: 88.1800 | AA67: 8.8180 | AB67: 88.0181 | AC67: 65.0000% | AD67: 是 | AE67: 否
A68: 2022010428 | B68: 13 | C68: 40 | D68: 2022010400 | E68: 王一伊 | F68: 化工类22-2 | G68: 99.2785 | H68: 90.0000 | I68: 59.5671 | J68: 36.0000 | K68: 6.8000 | L68: 0.0000 | M68: 102.3671 | N68: 20.4734 | O68: 84.6659 | P68: 90.2750 | Q68: 85.7877 | R68: 0.0000 | S68: 85.7877 | T68: 60.0514 | U68: 94.5000 | V68: 87.2000 | W68: 56.7000 | X68: 34.8800 | Y68: 30.0000 | Z68: 121.5800 | AA68: 12.1580 | AB68: 92.6828 | AC68: 70.0000% | AD68: 是 | AE68: 否
A69: 2022010429 | B69: 32 | C69: 36 | D69: 2022010401 | E69: 贾文青 | F69: 化工类22-2 | G69: 99.5067 | H69: 90.0000 | I69: 59.7040 | J69: 36.0000 | K69: 6.0000 | L69: 0.0000 | M69: 101.7040 | N69: 20.3408 | O69: 85.0878 | P69: 94.9600 | Q69: 87.0622 | R69: 0.0000 | S69: 87.0622 | T69: 60.9436 | U69: 84.0000 | V69: 78.5000 | W69: 50.4000 | X69: 31.4000 | Y69: 0.0000 | Z69: 81.8000 | AA69: 8.1800 | AB69: 89.4644 | AC69: 80.0000% | AD69: 是 | AE69: 否
A70: 2022010430 | B70: 24 | C70: 24 | D70: 2022010402 | E70: 季睿 | F70: 化工类22-2 | G70: 99.3437 | H70: 90.0000 | I70: 59.6062 | J70: 36.0000 | K70: 6.7500 | L70: 0.0000 | M70: 102.3562 | N70: 20.4712 | O70: 87.3049 | P70: 89.9333 | Q70: 87.8306 | R70: 0.0000 | S70: 87.8306 | T70: 61.4814 | U70: 87.5000 | V70: 73.0000 | W70: 52.5000 | X70: 29.2000 | Y70: 0.0000 | Z70: 81.7000 | AA70: 8.1700 | AB70: 90.1226 | AC70: 85.0000% | AD70: 是 | AE70: 否
A71: 2022010431 | B71: 72 | C71: 70 | D71: 2022010404 | E71: 付晨汐 | F71: 化工类22-2 | G71: 99.4741 | H71: 90.0000 | I71: 59.6845 | J71: 36.0000 | K71: 4.8000 | L71: 0.0000 | M71: 100.4845 | N71: 20.0969 | O71: 80.3927 | P71: 92.1091 | Q71: 82.7360 | R71: 0.0000 | S71: 82.7360 | T71: 57.9152 | U71: 84.5000 | V71: 72.2000 | W71: 50.7000 | X71: 28.8800 | Y71: 0.0000 | Z71: 79.5800 | AA71: 7.9580 | AB71: 85.9701 | AC71: 80.0000% | AD71: 是 | AE71: 否
A72: 2022010432 | B72: 35 | C72: 57 | D72: 2022010405 | E72: 李子敬 | F72: 化工类22-2 | G72: 99.8001 | H72: 90.0000 | I72: 59.8801 | J72: 36.0000 | K72: 6.8000 | L72: 0.0000 | M72: 102.6801 | N72: 20.5360 | O72: 82.0775 | P72: 85.6667 | Q72: 82.7953 | R72: 0.0000 | S72: 82.7953 | T72: 57.9567 | U72: 90.5000 | V72: 90.0000 | W72: 54.3000 | X72: 36.0000 | Y72: 18.0000 | Z72: 108.3000 | AA72: 10.8300 | AB72: 89.3228 | AC72: 72.2222% | AD72: 是 | AE72: 否
A73: 2022010433 | B73: 44 | C73: 66 | D73: 2022010406 | E73: 彭莎莎 | F73: 化工类22-2 | G73: 100.1588 | H73: 90.0000 | I73: 60.0953 | J73: 36.0000 | K73: 7.2000 | L73: 0.0000 | M73: 103.2953 | N73: 20.6591 | O73: 81.1012 | P73: 88.4444 | Q73: 82.5698 | R73: 2.5000 | S73: 85.0698 | T73: 59.5489 | U73: 84.5000 | V73: 75.4000 | W73: 50.7000 | X73: 30.1600 | Y73: 0.0000 | Z73: 80.8600 | AA73: 8.0860 | AB73: 88.2939 | AC73: 70.0000% | AD73: 是 | AE73: 否
A74: 2022010434 | B74: 23 | C74: 9 | D74: 2022010407 | E74: 叶海宇 | F74: 化工类22-2 | G74: 99.5393 | H74: 90.0000 | I74: 59.7236 | J74: 36.0000 | K74: 4.8000 | L74: 0.0000 | M74: 100.5236 | N74: 20.1047 | O74: 88.7412 | P74: 89.8000 | Q74: 88.9529 | R74: 0.0000 | S74: 88.9529 | T74: 62.2671 | U74: 85.5000 | V74: 74.3000 | W74: 51.3000 | X74: 29.7200 | Y74: 0.0000 | Z74: 81.0200 | AA74: 8.1020 | AB74: 90.4738 | AC74: 90.0000% | AD74: 是 | AE74: 否
A75: 2022010435 | B75: 9 | C75: 6 | D75: 2022010408 | E75: 许文轲 | F75: 化工类22-2 | G75: 99.8980 | H75: 90.0000 | I75: 59.9388 | J75: 36.0000 | K75: 6.2660 | L75: 0.0000 | M75: 102.2048 | N75: 20.4410 | O75: 90.5506 | P75: 90.7500 | Q75: 90.5905 | R75: 0.0000 | S75: 90.5905 | T75: 63.4133 | U75: 89.5000 | V75: 60.9000 | W75: 53.7000 | X75: 24.3600 | Y75: 14.0000 | Z75: 92.0600 | AA75: 9.2060 | AB75: 93.0603 | AC75: 90.0000% | AD75: 是 | AE75: 否
A76: 2022010436 | B76: 97 | C76: 91 | D76: 2022010409 | E76: 周家艺 | F76: 化工类22-2 | G76: 99.4089 | H76: 90.0000 | I76: 59.6453 | J76: 36.0000 | K76: 3.3300 | L76: 0.0000 | M76: 98.9753 | N76: 19.7951 | O76: 78.5412 | P76: 90.0000 | Q76: 80.8329 | R76: 0.0000 | S76: 80.8329 | T76: 56.5831 | U76: 74.5000 | V76: 60.1000 | W76: 44.7000 | X76: 24.0400 | Y76: 0.0000 | Z76: 68.7400 | AA76: 6.8740 | AB76: 83.2521 | AC76: 55.0000% | AD76: 是 | AE76: 否
A77: 2022010437 | B77: 125 | C77: 145 | D77: 2022010410 | E77: 王子路 | F77: 化工类22-2 | G77: 99.3111 | H77: 90.0000 | I77: 59.5867 | J77: 36.0000 | K77: 4.9000 | L77: 0.0000 | M77: 100.4867 | N77: 20.0973 | O77: 71.3488 | P77: 91.4000 | Q77: 75.3590 | R77: 0.0000 | S77: 75.3590 | T77: 52.7513 | U77: 75.0000 | V77: 66.7000 | W77: 45.0000 | X77: 26.6800 | Y77: 0.0000 | Z77: 71.6800 | AA77: 7.1680 | AB77: 80.0166 | AC77: 50.0000% | AD77: 是 | AE77: 是
A78: 2022010438 | B78: 129 | C78: 133 | D78: 2022010411 | E78: 姚锦栋 | F78: 化工类22-2 | G78: 99.2133 | H78: 90.0000 | I78: 59.5280 | J78: 36.0000 | K78: 1.8000 | L78: 0.0000 | M78: 97.3280 | N78: 19.4656 | O78: 73.4471 | P78: 75.6667 | Q78: 73.8910 | R78: 0.0000 | S78: 73.8910 | T78: 51.7237 | U78: 89.0000 | V78: 75.4000 | W78: 53.4000 | X78: 30.1600 | Y78: 0.0000 | Z78: 83.5600 | AA78: 8.3560 | AB78: 79.5453 | AC78: 60.0000% | AD78: 是 | AE78: 是
A79: 2022010439 | B79: 56 | C79: 33 | D79: 2022010412 | E79: 代肖彤 | F79: 化工类22-2 | G79: 99.0177 | H79: 90.0000 | I79: 59.4106 | J79: 36.0000 | K79: 3.2800 | L79: 0.0000 | M79: 98.6906 | N79: 19.7381 | O79: 85.2753 | P79: 87.3333 | Q79: 85.6869 | R79: 0.0000 | S79: 85.6869 | T79: 59.9808 | U79: 81.0000 | V79: 71.3000 | W79: 48.6000 | X79: 28.5200 | Y79: 0.0000 | Z79: 77.1200 | AA79: 7.7120 | AB79: 87.4309 | AC79: 85.0000% | AD79: 是 | AE79: 否
A80: 2022010440 | B80: 131 | C80: 123 | D80: 2022010413 | E80: 陈恒宇 | F80: 化工类22-2 | G80: 99.3437 | H80: 90.0000 | I80: 59.6062 | J80: 36.0000 | K80: 1.8500 | L80: 0.0000 | M80: 97.4562 | N80: 19.4912 | O80: 74.7341 | P80: 80.3333 | Q80: 75.8540 | R80: 0.0000 | S80: 75.8540 | T80: 53.0978 | U80: 72.5000 | V80: 62.0000 | W80: 43.5000 | X80: 24.8000 | Y80: 0.0000 | Z80: 68.3000 | AA80: 6.8300 | AB80: 79.4190 | AC80: 60.0000% | AD80: 是 | AE80: 是
A81: 2022010441 | B81: 126 | C81: 124 | D81: 2022010418 | E81: 王明堃 | F81: 化工类22-2 | G81: 99.1481 | H81: 90.0000 | I81: 59.4888 | J81: 36.0000 | K81: 1.9000 | L81: 0.0000 | M81: 97.3888 | N81: 19.4778 | O81: 74.6353 | P81: 80.0000 | Q81: 75.7082 | R81: 0.0000 | S81: 75.7082 | T81: 52.9958 | U81: 80.5000 | V81: 64.8000 | W81: 48.3000 | X81: 25.9200 | Y81: 0.0000 | Z81: 74.2200 | AA81: 7.4220 | AB81: 79.8955 | AC81: 35.0000% | AD81: 是 | AE81: 是
A82: 2022010442 | B82: 88 | C82: 90 | D82: 2022010419 | E82: 史国柱 | F82: 化工类22-2 | G82: 98.4960 | H82: 90.0000 | I82: 59.0976 | J82: 36.0000 | K82: 6.4500 | L82: 0.0000 | M82: 101.5476 | N82: 20.3095 | O82: 78.6353 | P82: 87.0000 | Q82: 80.3082 | R82: 0.0000 | S82: 80.3082 | T82: 56.2158 | U82: 82.0000 | V82: 73.6000 | W82: 49.2000 | X82: 29.4400 | Y82: 0.0000 | Z82: 78.6400 | AA82: 7.8640 | AB82: 84.3893 | AC82: 65.0000% | AD82: 是 | AE82: 否
A83: 2022010443 | B83: 81 | C83: 84 | D83: 2022010421 | E83: 季磊 | F83: 化工类22-2 | G83: 99.1481 | H83: 90.0000 | I83: 59.4888 | J83: 36.0000 | K83: 4.0000 | L83: 0.0000 | M83: 99.4888 | N83: 19.8978 | O83: 79.1247 | P83: 89.0000 | Q83: 81.0998 | R83: 2.0000 | S83: 83.0998 | T83: 58.1698 | U83: 75.0000 | V83: 66.6000 | W83: 45.0000 | X83: 26.6400 | Y83: 0.0000 | Z83: 71.6400 | AA83: 7.1640 | AB83: 85.2316 | AC83: 60.0000% | AD83: 是 | AE83: 否
A84: 2022010444 | B84: 38 | C84: 28 | D84: 2022010422 | E84: 江锦欣 | F84: 化工类22-2 | G84: 99.5393 | H84: 90.0000 | I84: 59.7236 | J84: 36.0000 | K84: 6.8000 | L84: 0.0000 | M84: 102.5236 | N84: 20.5047 | O84: 86.2235 | P84: 93.2500 | Q84: 87.6288 | R84: 0.0000 | S84: 87.6288 | T84: 61.3402 | U84: 75.0000 | V84: 66.0000 | W84: 45.0000 | X84: 26.4000 | Y84: 0.0000 | Z84: 71.4000 | AA84: 7.1400 | AB84: 88.9849 | AC84: 80.0000% | AD84: 是 | AE84: 否
A85: 2022010445 | B85: 114 | C85: 121 | D85: 2022010423 | E85: 汪礼俊 | F85: 化工类22-2 | G85: 98.5938 | H85: 90.0000 | I85: 59.1563 | J85: 36.0000 | K85: 4.7000 | L85: 0.0000 | M85: 99.8563 | N85: 19.9713 | O85: 74.8353 | P85: 87.3333 | Q85: 77.3349 | R85: 0.0000 | S85: 77.3349 | T85: 54.1344 | U85: 83.0000 | V85: 68.3000 | W85: 49.8000 | X85: 27.3200 | Y85: 0.0000 | Z85: 77.1200 | AA85: 7.7120 | AB85: 81.8177 | AC85: 55.0000% | AD85: 是 | AE85: 否
A86: 2022010446 | B86: 137 | C86: 130 | D86: 2022010425 | E86: 闫杨奇昊 | F86: 化工类22-2 | G86: 97.1592 | H86: 90.0000 | I86: 58.2955 | J86: 36.0000 | K86: 4.0000 | L86: 0.0000 | M86: 98.2955 | N86: 19.6591 | O86: 73.9435 | P86: 76.5000 | Q86: 74.4548 | R86: 0.0000 | S86: 74.4548 | T86: 52.1184 | U86: 71.0000 | V86: 62.0000 | W86: 42.6000 | X86: 24.8000 | Y86: 0.0000 | Z86: 67.4000 | AA86: 6.7400 | AB86: 78.5175 | AC86: 40.0000% | AD86: 是 | AE86: 是
A87: 2022010447 | B87: 166 | C87: 166 | D87: 2022012314 | E87: 努尔兰·吐尔军 | F87: 化工类22-2 | G87: 99.2785 | H87: 90.0000 | I87: 59.5671 | J87: 36.0000 | K87: 0.0000 | L87: 0.0000 | M87: 95.5671 | N87: 19.1134 | O87: 46.9878 | P87: 55.3333 | Q87: 48.6569 | R87: 0.0000 | S87: 48.6569 | T87: 34.0598 | U87: 80.0000 | V87: 68.2000 | W87: 48.0000 | X87: 27.2800 | Y87: 0.0000 | Z87: 75.2800 | AA87: 7.5280 | AB87: 60.7013 | AC87: 31.2500% | AD87: 是 | AE87: 是
A88: 2022010448 | B88: 151 | C88: 161 | D88: 2022010428 | E88: 马芬 | F88: 化工类22-3 | G88: 99.4514 | H88: 90.0000 | I88: 59.6708 | J88: 36.0000 | K88: 1.9000 | L88: 0.0000 | M88: 97.5708 | N88: 19.5142 | O88: 64.6634 | P88: 88.4000 | Q88: 69.4107 | R88: 0.0000 | S88: 69.4107 | T88: 48.5875 | U88: 86.0000 | V88: 72.6000 | W88: 51.6000 | X88: 29.0400 | Y88: 0.0000 | Z88: 80.6400 | AA88: 8.0640 | AB88: 76.1657 | AC88: 56.2500% | AD88: 是 | AE88: 是
A89: 2022010449 | B89: 48 | C89: 45 | D89: 2022010429 | E89: 程实 | F89: 化工类22-3 | G89: 99.6076 | H89: 90.0000 | I89: 59.7646 | J89: 36.0000 | K89: 4.8000 | L89: 0.0000 | M89: 100.5646 | N89: 20.1129 | O89: 83.9082 | P89: 89.3333 | Q89: 84.9933 | R89: 0.0000 | S89: 84.9933 | T89: 59.4953 | U89: 86.0000 | V89: 77.6000 | W89: 51.6000 | X89: 31.0400 | Y89: 0.0000 | Z89: 82.6400 | AA89: 8.2640 | AB89: 87.8722 | AC89: 80.0000% | AD89: 是 | AE89: 否
A90: 2022010450 | B90: 61 | C90: 89 | D90: 2022010430 | E90: 马瑜含 | F90: 化工类22-3 | G90: 99.3889 | H90: 90.0000 | I90: 59.6333 | J90: 36.0000 | K90: 5.1540 | L90: 0.0000 | M90: 100.7873 | N90: 20.1575 | O90: 78.7129 | P90: 91.0909 | Q90: 81.1885 | R90: 0.0000 | S90: 81.1885 | T90: 56.8320 | U90: 94.0000 | V90: 84.1000 | W90: 56.4000 | X90: 33.6400 | Y90: 10.0000 | Z90: 100.0400 | AA90: 10.0040 | AB90: 86.9934 | AC90: 65.0000% | AD90: 是 | AE90: 是
A91: 2022010451 | B91: 49 | C91: 42 | D91: 2022010431 | E91: 贺婕 | F91: 化工类22-3 | G91: 99.2951 | H91: 90.0000 | I91: 59.5771 | J91: 36.0000 | K91: 3.0000 | L91: 0.0000 | M91: 98.5771 | N91: 19.7154 | O91: 84.4235 | P91: 86.7500 | Q91: 84.8888 | R91: 0.0000 | S91: 84.8888 | T91: 59.4222 | U91: 75.0000 | V91: 60.0000 | W91: 45.0000 | X91: 24.0000 | Y91: 18.0000 | Z91: 87.0000 | AA91: 8.7000 | AB91: 87.8376 | AC91: 83.3333% | AD91: 是 | AE91: 否
A92: 2022010452 | B92: 99 | C92: 92 | D92: 2022010432 | E92: 刘雨佳 | F92: 化工类22-3 | G92: 99.3889 | H92: 90.0000 | I92: 59.6333 | J92: 36.0000 | K92: 3.6700 | L92: 0.0000 | M92: 99.3033 | N92: 19.8607 | O92: 78.4635 | P92: 84.5714 | Q92: 79.6851 | R92: 0.0000 | S92: 79.6851 | T92: 55.7796 | U92: 76.5000 | V92: 69.2000 | W92: 45.9000 | X92: 27.6800 | Y92: 0.0000 | Z92: 73.5800 | AA92: 7.3580 | AB92: 82.9982 | AC92: 60.0000% | AD92: 是 | AE92: 是
A93: 2022010453 | B93: 8 | C93: 107 | D93: 2022010433 | E93: 陈禾婕 | F93: 化工类22-3 | G93: 99.5139 | H93: 90.0000 | I93: 59.7083 | J93: 36.0000 | K93: 6.4500 | L93: (2.0000) | M93: 100.1583 | N93: 20.0317 | O93: 77.1293 | P93: 88.3077 | Q93: 79.3650 | R93: 12.0000 | S93: 91.3650 | T93: 63.9555 | U93: 90.0000 | V93: 81.9000 | W93: 54.0000 | X93: 32.7600 | Y93: 4.0000 | Z93: 90.7600 | AA93: 9.0760 | AB93: 93.0631 | AC93: 75.0000% | AD93: 是 | AE93: 是
A94: 2022010454 | B94: 3 | C94: 8 | D94: 2022010434 | E94: 黄宁 | F94: 化工类22-3 | G94: 99.5451 | H94: 90.0000 | I94: 59.7271 | J94: 36.0000 | K94: 5.0000 | L94: 0.0000 | M94: 100.7271 | N94: 20.1454 | O94: 88.8329 | P94: 90.3333 | Q94: 89.1330 | R94: 12.0000 | S94: 101.1330 | T94: 70.7931 | U94: 87.0000 | V94: 78.5000 | W94: 52.2000 | X94: 31.4000 | Y94: 8.0000 | Z94: 91.6000 | AA94: 9.1600 | AB94: 100.0985 | AC94: 100.0000% | AD94: 是 | AE94: 否
A95: 2022010455 | B95: 101 | C95: 97 | D95: 2022010435 | E95: 秦婧瑶 | F95: 化工类22-3 | G95: 99.4201 | H95: 90.0000 | I95: 59.6521 | J95: 36.0000 | K95: 5.8000 | L95: 0.0000 | M95: 101.4521 | N95: 20.2904 | O95: 77.9882 | P95: 81.1429 | Q95: 78.6192 | R95: 0.0000 | S95: 78.6192 | T95: 55.0334 | U95: 80.5000 | V95: 61.5000 | W95: 48.3000 | X95: 24.6000 | Y95: 2.0000 | Z95: 74.9000 | AA95: 7.4900 | AB95: 82.8138 | AC95: 65.0000% | AD95: 是 | AE95: 否
A96: 2022010456 | B96: 19 | C96: 16 | D96: 2022010436 | E96: 孙涵 | F96: 化工类22-3 | G96: 99.9200 | H96: 90.0000 | I96: 59.9520 | J96: 36.0000 | K96: 7.8000 | L96: 0.0000 | M96: 103.7520 | N96: 20.7504 | O96: 88.0073 | P96: 90.5000 | Q96: 88.5059 | R96: 0.0000 | S96: 88.5059 | T96: 61.9541 | U96: 86.5000 | V96: 81.6000 | W96: 51.9000 | X96: 32.6400 | Y96: 2.0000 | Z96: 86.5400 | AA96: 8.6540 | AB96: 91.3585 | AC96: 94.7368% | AD96: 是 | AE96: 否
A97: 2022010457 | B97: 107 | C97: 111 | D97: 2022010437 | E97: 王晓弘 | F97: 化工类22-3 | G97: 99.6076 | H97: 90.0000 | I97: 59.7646 | J97: 36.0000 | K97: 3.5340 | L97: 0.0000 | M97: 99.2986 | N97: 19.8597 | O97: 76.4847 | P97: 79.8571 | Q97: 77.1592 | R97: 0.0000 | S97: 77.1592 | T97: 54.0114 | U97: 76.0000 | V97: 74.8000 | W97: 45.6000 | X97: 29.9200 | Y97: 8.0000 | Z97: 83.5200 | AA97: 8.3520 | AB97: 82.2231 | AC97: 55.0000% | AD97: 是 | AE97: 否
A98: 2022010458 | B98: 75 | C98: 62 | D98: 2022010438 | E98: 张涵婷 | F98: 化工类22-3 | G98: 99.6388 | H98: 90.0000 | I98: 59.7833 | J98: 36.0000 | K98: 5.8000 | L98: 0.0000 | M98: 101.5833 | N98: 20.3167 | O98: 81.6824 | P98: 85.7143 | Q98: 82.4887 | R98: 0.0000 | S98: 82.4887 | T98: 57.7421 | U98: 80.5000 | V98: 73.8000 | W98: 48.3000 | X98: 29.5200 | Y98: 0.0000 | Z98: 77.8200 | AA98: 7.7820 | AB98: 85.8408 | AC98: 65.0000% | AD98: 是 | AE98: 否
A99: 2022010459 | B99: 116 | C99: 126 | D99: 2022010439 | E99: 张心怡 | F99: 化工类22-3 | G99: 99.5451 | H99: 90.0000 | I99: 59.7271 | J99: 36.0000 | K99: 3.5340 | L99: 0.0000 | M99: 99.2611 | N99: 19.8522 | O99: 74.6047 | P99: 89.2857 | Q99: 77.5409 | R99: 0.0000 | S99: 77.5409 | T99: 54.2786 | U99: 81.5000 | V99: 66.6000 | W99: 48.9000 | X99: 26.6400 | Y99: 0.0000 | Z99: 75.5400 | AA99: 7.5540 | AB99: 81.6848 | AC99: 60.0000% | AD99: 是 | AE99: 是
A100: 2022012316 | B100: 141 | C100: 137 | D100: 2022010442 | E100: 尹泽 | F100: 化工类22-3 | G100: 99.0139 | H100: 90.0000 | I100: 59.4084 | J100: 36.0000 | K100: 5.0000 | L100: 0.0000 | M100: 100.4084 | N100: 20.0817 | O100: 72.0000 | P100: 82.3333 | Q100: 74.0667 | R100: 0.0000 | S100: 74.0667 | T100: 51.8467 | U100: 60.0000 | V100: 68.8000 | W100: 36.0000 | X100: 27.5200 | Y100: 0.0000 | Z100: 63.5200 | AA100: 6.3520 | AB100: 78.2803 | AC100: 47.3684% | AD100: 是 | AE100: 是
A101: 2022010460 | B101: 106 | C101: 99 | D101: 2022010444 | E101: 汪洋 | F101: 化工类22-3 | G101: 98.9827 | H101: 90.0000 | I101: 59.3896 | J101: 36.0000 | K101: 0.0000 | L101: 0.0000 | M101: 95.3896 | N101: 19.0779 | O101: 77.8585 | P101: 89.2000 | Q101: 80.1268 | R101: 0.0000 | S101: 80.1268 | T101: 56.0888 | U101: 74.5000 | V101: 67.4000 | W101: 44.7000 | X101: 26.9600 | Y101: 0.0000 | Z101: 71.6600 | AA101: 7.1660 | AB101: 82.3327 | AC101: 60.0000% | AD101: 是 | AE101: 否
A102: 2022010461 | B102: 76 | C102: 78 | D102: 2022010445 | E102: 赵国平 | F102: 化工类22-3 | G102: 99.2327 | H102: 90.0000 | I102: 59.5396 | J102: 36.0000 | K102: 5.8500 | L102: 0.0000 | M102: 101.3896 | N102: 20.2779 | O102: 79.5694 | P102: 86.6667 | Q102: 80.9889 | R102: 0.0000 | S102: 80.9889 | T102: 56.6922 | U102: 84.5000 | V102: 74.0000 | W102: 50.7000 | X102: 29.6000 | Y102: 8.0000 | Z102: 88.3000 | AA102: 8.8300 | AB102: 85.8001 | AC102: 70.0000% | AD102: 是 | AE102: 否
A103: 2022010462 | B103: 54 | C103: 103 | D103: 2022010446 | E103: 金立民 | F103: 化工类22-3 | G103: 98.8265 | H103: 90.0000 | I103: 59.2959 | J103: 36.0000 | K103: 7.5500 | L103: 0.0000 | M103: 102.8459 | N103: 20.5692 | O103: 77.3153 | P103: 83.3333 | Q103: 78.5189 | R103: 6.0000 | S103: 84.5189 | T103: 59.1632 | U103: 82.0000 | V103: 72.7000 | W103: 49.2000 | X103: 29.0800 | Y103: 0.0000 | Z103: 78.2800 | AA103: 7.8280 | AB103: 87.5604 | AC103: 75.0000% | AD103: 是 | AE103: 是
A104: 2022010463 | B104: 27 | C104: 49 | D104: 2022010448 | E104: 王增智 | F104: 化工类22-3 | G104: 99.3264 | H104: 90.0000 | I104: 59.5958 | J104: 36.0000 | K104: 5.6000 | L104: 0.0000 | M104: 101.1958 | N104: 20.2392 | O104: 83.2471 | P104: 94.0000 | Q104: 85.3976 | R104: 0.0000 | S104: 85.3976 | T104: 59.7784 | U104: 87.0000 | V104: 83.2000 | W104: 52.2000 | X104: 33.2800 | Y104: 12.0000 | Z104: 97.4800 | AA104: 9.7480 | AB104: 89.7655 | AC104: 75.0000% | AD104: 是 | AE104: 否
A105: 2022010464 | B105: 39 | C105: 20 | D105: 2022010449 | E105: 郑少杰 | F105: 化工类22-3 | G105: 97.9516 | H105: 90.0000 | I105: 58.7710 | J105: 36.0000 | K105: 4.6000 | L105: 0.0000 | M105: 99.3710 | N105: 19.8742 | O105: 87.5459 | P105: 80.2500 | Q105: 86.0867 | R105: 0.0000 | S105: 86.0867 | T105: 60.2607 | U105: 90.5000 | V105: 80.6000 | W105: 54.3000 | X105: 32.2400 | Y105: 0.0000 | Z105: 86.5400 | AA105: 8.6540 | AB105: 88.7889 | AC105: 90.0000% | AD105: 是 | AE105: 否
A106: 2022010465 | B106: 159 | C106: 158 | D106: 2022010450 | E106: 阿坚全 | F106: 化工类22-3 | G106: 99.3576 | H106: 90.0000 | I106: 59.6146 | J106: 36.0000 | K106: 2.6700 | L106: 0.0000 | M106: 98.2846 | N106: 19.6569 | O106: 65.1098 | P106: 72.6667 | Q106: 66.6211 | R106: 0.0000 | S106: 66.6211 | T106: 46.6348 | U106: 78.0000 | V106: 68.3000 | W106: 46.8000 | X106: 27.3200 | Y106: 0.0000 | Z106: 74.1200 | AA106: 7.4120 | AB106: 73.7037 | AC106: 50.0000% | AD106: 是 | AE106: 是
A107: 2022010466 | B107: 17 | C107: 13 | D107: 2022010451 | E107: 蒋子强 | F107: 化工类22-3 | G107: 99.0452 | H107: 90.0000 | I107: 59.4271 | J107: 36.0000 | K107: 4.5340 | L107: 0.0000 | M107: 99.9611 | N107: 19.9922 | O107: 88.1951 | P107: 93.2000 | Q107: 89.1961 | R107: 0.0000 | S107: 89.1961 | T107: 62.4373 | U107: 95.0000 | V107: 87.5000 | W107: 57.0000 | X107: 35.0000 | Y107: 0.0000 | Z107: 92.0000 | AA107: 9.2000 | AB107: 91.6295 | AC107: 100.0000% | AD107: 是 | AE107: 否
A108: 2022010467 | B108: 16 | C108: 4 | D108: 2022010452 | E108: 康胜 | F108: 化工类22-3 | G108: 99.0139 | H108: 90.0000 | I108: 59.4084 | J108: 36.0000 | K108: 5.7000 | L108: 0.0000 | M108: 101.1084 | N108: 20.2217 | O108: 91.1929 | P108: 87.4000 | Q108: 90.4344 | R108: 0.0000 | S108: 90.4344 | T108: 63.3040 | U108: 91.5000 | V108: 72.5000 | W108: 54.9000 | X108: 29.0000 | Y108: 0.0000 | Z108: 83.9000 | AA108: 8.3900 | AB108: 91.9157 | AC108: 95.0000% | AD108: 是 | AE108: 否
A109: 2022010468 | B109: 30 | C109: 39 | D109: 2022010454 | E109: 孙琪桐 | F109: 化工类22-3 | G109: 99.2951 | H109: 90.0000 | I109: 59.5771 | J109: 36.0000 | K109: 5.8000 | L109: 0.0000 | M109: 101.3771 | N109: 20.2754 | O109: 84.8165 | P109: 91.0000 | Q109: 86.0532 | R109: 0.0000 | S109: 86.0532 | T109: 60.2372 | U109: 83.0000 | V109: 82.3000 | W109: 49.8000 | X109: 32.9200 | Y109: 8.0000 | Z109: 90.7200 | AA109: 9.0720 | AB109: 89.5846 | AC109: 85.0000% | AD109: 是 | AE109: 否
A110: 2022010469 | B110: 4 | C110: 1 | D110: 2022010455 | E110: 王德民 | F110: 化工类22-3 | G110: 99.1389 | H110: 90.0000 | I110: 59.4834 | J110: 36.0000 | K110: 4.0000 | L110: 0.0000 | M110: 99.4834 | N110: 19.8967 | O110: 92.9024 | P110: 98.6667 | Q110: 94.0553 | R110: 0.0000 | S110: 94.0553 | T110: 65.8387 | U110: 92.0000 | V110: 83.7000 | W110: 55.2000 | X110: 33.4800 | Y110: 6.0000 | Z110: 94.6800 | AA110: 9.4680 | AB110: 95.2034 | AC110: 100.0000% | AD110: 是 | AE110: 否
A111: 2022010470 | B111: 140 | C111: 135 | D111: 2022010457 | E111: 杨乐辰 | F111: 化工类22-3 | G111: 99.1389 | H111: 90.0000 | I111: 59.4834 | J111: 36.0000 | K111: 2.0000 | L111: 0.0000 | M111: 97.4834 | N111: 19.4967 | O111: 73.2439 | P111: 75.0000 | Q111: 73.5951 | R111: 0.0000 | S111: 73.5951 | T111: 51.5166 | U111: 78.0000 | V111: 64.8000 | W111: 46.8000 | X111: 25.9200 | Y111: 0.0000 | Z111: 72.7200 | AA111: 7.2720 | AB111: 78.2853 | AC111: 50.0000% | AD111: 是 | AE111: 是
A112: 2022010471 | B112: 6 | C112: 44 | D112: 2022010459 | E112: 朱行健 | F112: 化工类22-3 | G112: 98.6078 | H112: 90.0000 | I112: 59.1647 | J112: 36.0000 | K112: 6.8000 | L112: 0.0000 | M112: 101.9647 | N112: 20.3929 | O112: 84.2518 | P112: 89.3846 | Q112: 85.2783 | R112: 4.0000 | S112: 89.2783 | T112: 62.4948 | U112: 91.0000 | V112: 97.4000 | W112: 54.6000 | X112: 38.9600 | Y112: 18.0000 | Z112: 111.5600 | AA112: 11.1560 | AB112: 94.0438 | AC112: 90.0000% | AD112: 是 | AE112: 否
A113: 2022010472 | B113: 113 | C113: 134 | D113: 2022012316 | E113: 陈语 | F113: 化工类22-3 | G113: 99.5139 | H113: 90.0000 | I113: 59.7083 | J113: 36.0000 | K113: 4.5340 | L113: 0.0000 | M113: 100.2423 | N113: 20.0485 | O113: 73.2471 | P113: 88.5000 | Q113: 76.2976 | R113: 0.0000 | S113: 76.2976 | T113: 53.4084 | U113: 91.0000 | V113: 61.0000 | W113: 54.6000 | X113: 24.4000 | Y113: 5.0000 | Z113: 84.0000 | AA113: 8.4000 | AB113: 81.8568 | AC113: 55.0000% | AD113: 是 | AE113: 是
A114: 2022010473 | B114: 1 | C114: 73 | D114: 2022010461 | E114: 吴芷璇 | F114: 化工类22-4 | G114: 99.1910 | H114: 90.0000 | I114: 59.5146 | J114: 36.0000 | K114: 4.8000 | L114: 0.0000 | M114: 100.3146 | N114: 20.0629 | O114: 80.0071 | P114: 81.5385 | Q114: 80.3133 | R114: 28.5000 | S114: 108.8133 | T114: 76.1693 | U114: 98.5000 | V114: 89.6000 | W114: 59.1000 | X114: 35.8400 | Y114: 18.0000 | Z114: 112.9400 | AA114: 11.2940 | AB114: 107.5263 | AC114: 70.0000% | AD114: 是 | AE114: 否
A115: 2022010474 | B115: 25 | C115: 125 | D115: 2022010463 | E115: 孙千翔 | F115: 化工类22-4 | G115: 99.1608 | H115: 90.0000 | I115: 59.4965 | J115: 36.0000 | K115: 6.8000 | L115: 0.0000 | M115: 102.2965 | N115: 20.4593 | O115: 74.6353 | P115: 93.7778 | Q115: 78.4638 | R115: 7.8300 | S115: 86.2938 | T115: 60.4057 | U115: 88.0000 | V115: 82.9000 | W115: 52.8000 | X115: 33.1600 | Y115: 6.0000 | Z115: 91.9600 | AA115: 9.1960 | AB115: 90.0609 | AC115: 65.0000% | AD115: 是 | AE115: 否
A116: 2022010475 | B116: 71 | C116: 105 | D116: 2022010464 | E116: 邓姣 | F116: 化工类22-4 | G116: 99.1910 | H116: 90.0000 | I116: 59.5146 | J116: 36.0000 | K116: 6.0000 | L116: 0.0000 | M116: 101.5146 | N116: 20.3029 | O116: 77.1537 | P116: 91.0222 | Q116: 79.9274 | R116: 0.0000 | S116: 79.9274 | T116: 55.9492 | U116: 86.5000 | V116: 74.2000 | W116: 51.9000 | X116: 29.6800 | Y116: 16.0000 | Z116: 97.5800 | AA116: 9.7580 | AB116: 86.0101 | AC116: 70.0000% | AD116: 是 | AE116: 否
A117: 2022010476 | B117: 74 | C117: 74 | D117: 2022010465 | E117: 陈飞月 | F117: 化工类22-4 | G117: 99.1608 | H117: 90.0000 | I117: 59.4965 | J117: 36.0000 | K117: 3.6700 | L117: 0.0000 | M117: 99.1665 | N117: 19.8333 | O117: 79.9553 | P117: 89.9091 | Q117: 81.9461 | R117: 0.0000 | S117: 81.9461 | T117: 57.3622 | U117: 91.5000 | V117: 79.2000 | W117: 54.9000 | X117: 31.6800 | Y117: 0.0000 | Z117: 86.5800 | AA117: 8.6580 | AB117: 85.8535 | AC117: 70.0000% | AD117: 是 | AE117: 是
A118: 2022010477 | B118: 11 | C118: 5 | D118: 2022010466 | E118: 李春辉 | F118: 化工类22-4 | G118: 99.1305 | H118: 90.0000 | I118: 59.4783 | J118: 36.0000 | K118: 6.7000 | L118: 0.0000 | M118: 102.1783 | N118: 20.4357 | O118: 90.9562 | P118: 91.4545 | Q118: 91.0558 | R118: 0.0000 | S118: 91.0558 | T118: 63.7391 | U118: 87.5000 | V118: 76.8000 | W118: 52.5000 | X118: 30.7200 | Y118: 4.0000 | Z118: 87.2200 | AA118: 8.7220 | AB118: 92.8967 | AC118: 88.2353% | AD118: 是 | AE118: 否
A119: 2022010478 | B119: 83 | C119: 88 | D119: 2022010467 | E119: 石彩君 | F119: 化工类22-4 | G119: 99.1608 | H119: 90.0000 | I119: 59.4965 | J119: 36.0000 | K119: 4.6000 | L119: 0.0000 | M119: 100.0965 | N119: 20.0193 | O119: 78.7365 | P119: 88.7273 | Q119: 80.7346 | R119: 0.0000 | S119: 80.7346 | T119: 56.5142 | U119: 82.0000 | V119: 62.4000 | W119: 49.2000 | X119: 24.9600 | Y119: 8.0000 | Z119: 82.1600 | AA119: 8.2160 | AB119: 84.7495 | AC119: 65.0000% | AD119: 是 | AE119: 否
A120: 2022010479 | B120: 69 | C120: 101 | D120: 2022010468 | E120: 吴忆 | F120: 化工类22-4 | G120: 99.1910 | H120: 90.0000 | I120: 59.5146 | J120: 36.0000 | K120: 6.8000 | L120: 0.0000 | M120: 102.3146 | N120: 20.4629 | O120: 77.5294 | P120: 85.0000 | Q120: 79.0235 | R120: 4.0000 | S120: 83.0235 | T120: 58.1165 | U120: 90.0000 | V120: 60.0000 | W120: 54.0000 | X120: 24.0000 | Y120: 0.0000 | Z120: 78.0000 | AA120: 7.8000 | AB120: 86.3794 | AC120: 68.4211% | AD120: 是 | AE120: 是
A121: 2022010480 | B121: 85 | C121: 77 | D121: 2022010469 | E121: 许馨月 | F121: 化工类22-4 | G121: 99.2515 | H121: 90.0000 | I121: 59.5509 | J121: 36.0000 | K121: 5.8000 | L121: 0.0000 | M121: 101.3509 | N121: 20.2702 | O121: 79.8118 | P121: 83.5000 | Q121: 80.5494 | R121: 0.0000 | S121: 80.5494 | T121: 56.3846 | U121: 81.5000 | V121: 76.4000 | W121: 48.9000 | X121: 30.5600 | Y121: 0.0000 | Z121: 79.4600 | AA121: 7.9460 | AB121: 84.6008 | AC121: 65.0000% | AD121: 是 | AE121: 否
A122: 2022010481 | B122: 18 | C122: 32 | D122: 2022010470 | E122: 张润霞 | F122: 化工类22-4 | G122: 99.2515 | H122: 90.0000 | I122: 59.5509 | J122: 36.0000 | K122: 6.8000 | L122: 0.0000 | M122: 102.3509 | N122: 20.4702 | O122: 85.4512 | P122: 94.1000 | Q122: 87.1810 | R122: 0.0000 | S122: 87.1810 | T122: 61.0267 | U122: 87.0000 | V122: 82.2000 | W122: 52.2000 | X122: 32.8800 | Y122: 16.0000 | Z122: 101.0800 | AA122: 10.1080 | AB122: 91.6049 | AC122: 85.0000% | AD122: 是 | AE122: 否
A123: 2022010482 | B123: 77 | C123: 75 | D123: 2022010471 | E123: 张支铭 | F123: 化工类22-4 | G123: 99.1910 | H123: 90.0000 | I123: 59.5146 | J123: 36.0000 | K123: 4.5340 | L123: 0.0000 | M123: 100.0486 | N123: 20.0097 | O123: 79.9106 | P123: 91.2500 | Q123: 82.1785 | R123: 0.0000 | S123: 82.1785 | T123: 57.5249 | U123: 84.0000 | V123: 79.9000 | W123: 50.4000 | X123: 31.9600 | Y123: 0.0000 | Z123: 82.3600 | AA123: 8.2360 | AB123: 85.7707 | AC123: 65.0000% | AD123: 是 | AE123: 是
A124: 2022010483 | B124: 142 | C124: 144 | D124: 2022010472 | E124: 王奕喆 | F124: 化工类22-4 | G124: 99.1910 | H124: 90.0000 | I124: 59.5146 | J124: 36.0000 | K124: 0.0000 | L124: 0.0000 | M124: 95.5146 | N124: 19.1029 | O124: 71.3512 | P124: 88.5714 | Q124: 74.7953 | R124: 0.0000 | S124: 74.7953 | T124: 52.3567 | U124: 72.5000 | V124: 60.7000 | W124: 43.5000 | X124: 24.2800 | Y124: 0.0000 | Z124: 67.7800 | AA124: 6.7780 | AB124: 78.2376 | AC124: 40.0000% | AD124: 是 | AE124: 是
A125: 2022010484 | B125: 108 | C125: 109 | D125: 2022010473 | E125: 刘源兴 | F125: 化工类22-4 | G125: 99.1910 | H125: 90.0000 | I125: 59.5146 | J125: 36.0000 | K125: 1.0000 | L125: 0.0000 | M125: 96.5146 | N125: 19.3029 | O125: 76.8518 | P125: 87.0000 | Q125: 78.8814 | R125: 0.0000 | S125: 78.8814 | T125: 55.2170 | U125: 81.0000 | V125: 70.2000 | W125: 48.6000 | X125: 28.0800 | Y125: 0.0000 | Z125: 76.6800 | AA125: 7.6680 | AB125: 82.1879 | AC125: 65.0000% | AD125: 是 | AE125: 是
A126: 2022010485 | B126: 139 | C126: 127 | D126: 2022010475 | E126: 蔡进鹏 | F126: 化工类22-4 | G126: 99.1910 | H126: 90.0000 | I126: 59.5146 | J126: 36.0000 | K126: 0.0000 | L126: 0.0000 | M126: 95.5146 | N126: 19.1029 | O126: 74.5976 | P126: 74.4286 | Q126: 74.5638 | R126: 0.0000 | S126: 74.5638 | T126: 52.1946 | U126: 72.5000 | V126: 66.7000 | W126: 43.5000 | X126: 26.6800 | Y126: 0.0000 | Z126: 70.1800 | AA126: 7.0180 | AB126: 78.3156 | AC126: 50.0000% | AD126: 是 | AE126: 否
A127: 2022010486 | B127: 109 | C127: 113 | D127: 2022010476 | E127: 何岩松 | F127: 化工类22-4 | G127: 99.1910 | H127: 90.0000 | I127: 59.5146 | J127: 36.0000 | K127: 7.0000 | L127: 0.0000 | M127: 102.5146 | N127: 20.5029 | O127: 75.7671 | P127: 84.4000 | Q127: 77.4936 | R127: 0.0000 | S127: 77.4936 | T127: 54.2456 | U127: 78.0000 | V127: 68.0000 | W127: 46.8000 | X127: 27.2000 | Y127: 0.0000 | Z127: 74.0000 | AA127: 7.4000 | AB127: 82.1485 | AC127: 55.0000% | AD127: 是 | AE127: 是
A128: 2022010487 | B128: 31 | C128: 17 | D128: 2022010478 | E128: 李煌 | F128: 化工类22-4 | G128: 99.2213 | H128: 90.0000 | I128: 59.5328 | J128: 36.0000 | K128: 5.5500 | L128: 0.0000 | M128: 101.0828 | N128: 20.2166 | O128: 87.9882 | P128: 87.3333 | Q128: 87.8573 | R128: 0.0000 | S128: 87.8573 | T128: 61.5001 | U128: 77.5000 | V128: 67.9000 | W128: 46.5000 | X128: 27.1600 | Y128: 4.0000 | Z128: 77.6600 | AA128: 7.7660 | AB128: 89.4826 | AC128: 70.0000% | AD128: 是 | AE128: 否
A129: 2022010488 | B129: 111 | C129: 129 | D129: 2022010479 | E129: 杨广军 | F129: 化工类22-4 | G129: 99.1910 | H129: 90.0000 | I129: 59.5146 | J129: 36.0000 | K129: 7.0340 | L129: 0.0000 | M129: 102.5486 | N129: 20.5097 | O129: 74.3882 | P129: 77.2500 | Q129: 74.9606 | R129: 0.0000 | S129: 74.9606 | T129: 52.4724 | U129: 78.0000 | V129: 78.5000 | W129: 46.8000 | X129: 31.4000 | Y129: 12.0000 | Z129: 90.2000 | AA129: 9.0200 | AB129: 82.0021 | AC129: 55.0000% | AD129: 是 | AE129: 否
A130: 2022010489 | B130: 102 | C130: 106 | D130: 2022010480 | E130: 杨明涛 | F130: 化工类22-4 | G130: 99.1910 | H130: 90.0000 | I130: 59.5146 | J130: 36.0000 | K130: 6.5000 | L130: 0.0000 | M130: 102.0146 | N130: 20.4029 | O130: 77.1294 | P130: 77.5000 | Q130: 77.2035 | R130: 0.0000 | S130: 77.2035 | T130: 54.0425 | U130: 83.5000 | V130: 73.0000 | W130: 50.1000 | X130: 29.2000 | Y130: 4.0000 | Z130: 83.3000 | AA130: 8.3300 | AB130: 82.7754 | AC130: 50.0000% | AD130: 是 | AE130: 否
A131: 2022010490 | B131: 80 | C131: 119 | D131: 2022010481 | E131: 施孔君 | F131: 化工类22-4 | G131: 99.1608 | H131: 90.0000 | I131: 59.4965 | J131: 36.0000 | K131: 8.8000 | L131: 0.0000 | M131: 104.2965 | N131: 20.8593 | O131: 74.9756 | P131: 92.3556 | Q131: 78.4516 | R131: 4.0000 | S131: 82.4516 | T131: 57.7161 | U131: 60.0000 | V131: 60.0000 | W131: 36.0000 | X131: 24.0000 | Y131: 8.0000 | Z131: 68.0000 | AA131: 6.8000 | AB131: 85.3754 | AC131: 50.0000% | AD131: 是 | AE131: 是
A132: 2022010491 | B132: 37 | C132: 22 | D132: 2022010482 | E132: 傅世坤 | F132: 化工类22-4 | G132: 99.1910 | H132: 90.0000 | I132: 59.5146 | J132: 36.0000 | K132: 6.5340 | L132: 0.0000 | M132: 102.0486 | N132: 20.4097 | O132: 87.4188 | P132: 88.6000 | Q132: 87.6551 | R132: 0.0000 | S132: 87.6551 | T132: 61.3585 | U132: 76.0000 | V132: 67.0000 | W132: 45.6000 | X132: 26.8000 | Y132: 0.0000 | Z132: 72.4000 | AA132: 7.2400 | AB132: 89.0083 | AC132: 80.0000% | AD132: 是 | AE132: 否
A133: 2022012317 | B133: 92 | C133: 96 | D133: 2022010483 | E133: 李浩永 | F133: 化工类22-4 | G133: 99.1910 | H133: 90.0000 | I133: 59.5146 | J133: 36.0000 | K133: 6.2300 | L133: 0.0000 | M133: 101.7446 | N133: 20.3489 | O133: 78.2047 | P133: 90.2667 | Q133: 80.6171 | R133: 0.0000 | S133: 80.6171 | T133: 56.4320 | U133: 73.5000 | V133: 60.2000 | W133: 44.1000 | X133: 24.0800 | Y133: 0.0000 | Z133: 68.1800 | AA133: 6.8180 | AB133: 83.5989 | AC133: 55.0000% | AD133: 是 | AE133: 否
A134: 2022012318 | B134: 127 | C134: 147 | D134: 2022010484 | E134: 李芃钰 | F134: 化工类22-4 | G134: 99.1910 | H134: 90.0000 | I134: 59.5146 | J134: 36.0000 | K134: 4.5820 | L134: 0.0000 | M134: 100.0966 | N134: 20.0193 | O134: 71.1805 | P134: 87.3667 | Q134: 74.4177 | R134: 0.0000 | S134: 74.4177 | T134: 52.0924 | U134: 81.0000 | V134: 67.8000 | W134: 48.6000 | X134: 27.1200 | Y134: 0.0000 | Z134: 75.7200 | AA134: 7.5720 | AB134: 79.6837 | AC134: 60.0000% | AD134: 是 | AE134: 是
A135: 2022010492 | B135: 130 | C135: 140 | D135: 2022010485 | E135: 刘帅杰 | F135: 化工类22-4 | G135: 99.1910 | H135: 90.0000 | I135: 59.5146 | J135: 36.0000 | K135: 0.0000 | L135: 0.0000 | M135: 95.5146 | N135: 19.1029 | O135: 71.5439 | P135: 94.1000 | Q135: 76.0551 | R135: 0.0000 | S135: 76.0551 | T135: 53.2386 | U135: 77.0000 | V135: 62.2000 | W135: 46.2000 | X135: 24.8800 | Y135: 0.0000 | Z135: 71.0800 | AA135: 7.1080 | AB135: 79.4495 | AC135: 55.0000% | AD135: 是 | AE135: 是
A136: 2022010493 | B136: 58 | C136: 53 | D136: 2022010486 | E136: 邵科元 | F136: 化工类22-4 | G136: 99.7962 | H136: 90.0000 | I136: 59.8777 | J136: 36.0000 | K136: 2.6700 | L136: 0.0000 | M136: 98.5477 | N136: 19.7095 | O136: 82.2122 | P136: 93.4800 | Q136: 84.4658 | R136: 0.0000 | S136: 84.4658 | T136: 59.1260 | U136: 90.5000 | V136: 75.9000 | W136: 54.3000 | X136: 30.3600 | Y136: 0.0000 | Z136: 84.6600 | AA136: 8.4660 | AB136: 87.3016 | AC136: 70.0000% | AD136: 是 | AE136: 否
A137: 2022010494 | B137: 95 | C137: 98 | D137: 2022010487 | E137: 涂景豪 | F137: 化工类22-4 | G137: 99.1910 | H137: 90.0000 | I137: 59.5146 | J137: 36.0000 | K137: 5.0000 | L137: 0.0000 | M137: 100.5146 | N137: 20.1029 | O137: 77.9176 | P137: 83.5000 | Q137: 79.0341 | R137: 0.0000 | S137: 79.0341 | T137: 55.3239 | U137: 84.5000 | V137: 74.9000 | W137: 50.7000 | X137: 29.9600 | Y137: 0.0000 | Z137: 80.6600 | AA137: 8.0660 | AB137: 83.4928 | AC137: 70.0000% | AD137: 是 | AE137: 否
A138: 2022010495 | B138: 68 | C138: 55 | D138: 2022010488 | E138: 王佳航 | F138: 化工类22-4 | G138: 99.1910 | H138: 90.0000 | I138: 59.5146 | J138: 36.0000 | K138: 4.0000 | L138: 0.0000 | M138: 99.5146 | N138: 19.9029 | O138: 82.1800 | P138: 84.5000 | Q138: 82.6440 | R138: 0.0000 | S138: 82.6440 | T138: 57.8508 | U138: 84.0000 | V138: 70.7000 | W138: 50.4000 | X138: 28.2800 | Y138: 8.0000 | Z138: 86.6800 | AA138: 8.6680 | AB138: 86.4217 | AC138: 77.7778% | AD138: 是 | AE138: 否
A139: 2022010496 | B139: 84 | C139: 104 | D139: 2022010489 | E139: 谢林洲 | F139: 化工类22-4 | G139: 99.1910 | H139: 90.0000 | I139: 59.5146 | J139: 36.0000 | K139: 4.8000 | L139: 0.0000 | M139: 100.3146 | N139: 20.0629 | O139: 77.2235 | P139: 88.6667 | Q139: 79.5122 | R139: 0.0000 | S139: 79.5122 | T139: 55.6585 | U139: 85.0000 | V139: 74.6000 | W139: 51.0000 | X139: 29.8400 | Y139: 8.0000 | Z139: 88.8400 | AA139: 8.8840 | AB139: 84.6054 | AC139: 70.0000% | AD139: 是 | AE139: 是
A140: 2022010497 | B140: 15 | C140: 34 | D140: 2022010491 | E140: 张志彬 | F140: 化工类22-4 | G140: 99.1910 | H140: 90.0000 | I140: 59.5146 | J140: 36.0000 | K140: 5.8000 | L140: 0.0000 | M140: 101.3146 | N140: 20.2629 | O140: 85.2561 | P140: 89.1250 | Q140: 86.0299 | R140: 5.3300 | S140: 91.3599 | T140: 63.9519 | U140: 83.0000 | V140: 76.1000 | W140: 49.8000 | X140: 30.4400 | Y140: 0.0000 | Z140: 80.2400 | AA140: 8.0240 | AB140: 92.2388 | AC140: 85.0000% | AD140: 是 | AE140: 否
A141: 2022010498 | B141: 148 | C141: 156 | D141: 2022012317 | E141: 萨比尔·库尔班江 | F141: 化工类22-4 | G141: 99.1910 | H141: 90.0000 | I141: 59.5146 | J141: 36.0000 | K141: 1.0000 | L141: 0.0000 | M141: 96.5146 | N141: 19.3029 | O141: 68.5976 | P141: 72.7500 | Q141: 69.4280 | R141: 0.0000 | S141: 69.4280 | T141: 48.5996 | U141: 89.0000 | V141: 77.3000 | W141: 53.4000 | X141: 30.9200 | Y141: 4.0000 | Z141: 88.3200 | AA141: 8.8320 | AB141: 76.7346 | AC141: 56.2500% | AD141: 是 | AE141: 是
A142: 2022010499 | B142: 156 | C142: 160 | D142: 2022012318 | E142: 阿尔帕提·阿卜杜合力力 | F142: 化工类22-4 | G142: 99.1910 | H142: 90.0000 | I142: 59.5146 | J142: 36.0000 | K142: 1.9500 | L142: 0.0000 | M142: 97.4646 | N142: 19.4929 | O142: 64.7561 | P142: 81.0000 | Q142: 68.0049 | R142: 0.0000 | S142: 68.0049 | T142: 47.6034 | U142: 94.0000 | V142: 71.1000 | W142: 56.4000 | X142: 28.4400 | Y142: 0.0000 | Z142: 84.8400 | AA142: 8.4840 | AB142: 75.5803 | AC142: 50.0000% | AD142: 是 | AE142: 是
A143: 2022010500 | B143: 51 | C143: 61 | D143: 2022010492 | E143: 钮缨雪 | F143: 化工类22-5 | G143: 99.5474 | H143: 90.0000 | I143: 59.7284 | J143: 36.0000 | K143: 7.7500 | L143: 0.0000 | M143: 103.4784 | N143: 20.6957 | O143: 81.8707 | P143: 81.2500 | Q143: 81.7466 | R143: 0.0000 | S143: 81.7466 | T143: 57.2226 | U143: 88.0000 | V143: 79.6000 | W143: 52.8000 | X143: 31.8400 | Y143: 14.0000 | Z143: 98.6400 | AA143: 9.8640 | AB143: 87.7823 | AC143: 75.0000% | AD143: 是 | AE143: 否
A144: 2022010501 | B144: 70 | C144: 67 | D144: 2022010493 | E144: 付锦依 | F144: 化工类22-5 | G144: 99.1848 | H144: 90.0000 | I144: 59.5109 | J144: 36.0000 | K144: 4.8000 | L144: 0.0000 | M144: 100.3109 | N144: 20.0622 | O144: 80.9634 | P144: 92.3000 | Q144: 83.2307 | R144: 0.0000 | S144: 83.2307 | T144: 58.2615 | U144: 82.5000 | V144: 74.6000 | W144: 49.5000 | X144: 29.8400 | Y144: 0.0000 | Z144: 79.3400 | AA144: 7.9340 | AB144: 86.2577 | AC144: 70.0000% | AD144: 是 | AE144: 否
A145: 2022010502 | B145: 46 | C145: 50 | D145: 2022010494 | E145: 唐樱菲 | F145: 化工类22-5 | G145: 99.3661 | H145: 90.0000 | I145: 59.6197 | J145: 36.0000 | K145: 4.6000 | L145: 0.0000 | M145: 100.2197 | N145: 20.0439 | O145: 82.7365 | P145: 93.6667 | Q145: 84.9225 | R145: 0.0000 | S145: 84.9225 | T145: 59.4458 | U145: 88.0000 | V145: 79.5000 | W145: 52.8000 | X145: 31.8000 | Y145: 0.0000 | Z145: 84.6000 | AA145: 8.4600 | AB145: 87.9497 | AC145: 75.0000% | AD145: 是 | AE145: 否
A146: 2022010503 | B146: 57 | C146: 58 | D146: 2022010496 | E146: 张鑫 | F146: 化工类22-5 | G146: 99.0942 | H146: 90.0000 | I146: 59.4565 | J146: 36.0000 | K146: 4.8000 | L146: 0.0000 | M146: 100.2565 | N146: 20.0513 | O146: 82.0683 | P146: 98.5750 | Q146: 85.3696 | R146: 0.0000 | S146: 85.3696 | T146: 59.7587 | U146: 82.0000 | V146: 67.1000 | W146: 49.2000 | X146: 26.8400 | Y146: 0.0000 | Z146: 76.0400 | AA146: 7.6040 | AB146: 87.4140 | AC146: 65.0000% | AD146: 是 | AE146: 否
A147: 2022010504 | B147: 124 | C147: 114 | D147: 2022010497 | E147: 达娃卓玛 | F147: 化工类22-5 | G147: 99.0338 | H147: 90.0000 | I147: 59.4203 | J147: 36.0000 | K147: 0.0000 | L147: 0.0000 | M147: 95.4203 | N147: 19.0841 | O147: 75.7439 | P147: 81.2500 | Q147: 76.8451 | R147: 0.0000 | S147: 76.8451 | T147: 53.7916 | U147: 81.0000 | V147: 64.6000 | W147: 48.6000 | X147: 25.8400 | Y147: 0.0000 | Z147: 74.4400 | AA147: 7.4440 | AB147: 80.3196 | AC147: 60.0000% | AD147: 是 | AE147: 否
A148: 2022010505 | B148: 2 | C148: 3 | D148: 2022010498 | E148: 陈雨涵 | F148: 化工类22-5 | G148: 99.1546 | H148: 90.0000 | I148: 59.4928 | J148: 36.0000 | K148: 2.6700 | L148: 0.0000 | M148: 98.1628 | N148: 19.6326 | O148: 91.2850 | P148: 92.2500 | Q148: 91.4780 | R148: 13.5000 | S148: 104.9780 | T148: 73.4846 | U148: 90.0000 | V148: 78.8000 | W148: 54.0000 | X148: 31.5200 | Y148: 0.0000 | Z148: 85.5200 | AA148: 8.5520 | AB148: 101.6692 | AC148: 94.4444% | AD148: 是 | AE148: 否
A149: 2022010506 | B149: 60 | C149: 54 | D149: 2022010499 | E149: 曹炜曼 | F149: 化工类22-5 | G149: 99.5474 | H149: 90.0000 | I149: 59.7284 | J149: 36.0000 | K149: 6.8000 | L149: 0.0000 | M149: 102.5284 | N149: 20.5057 | O149: 82.1929 | P149: 85.5000 | Q149: 82.8544 | R149: 0.0000 | S149: 82.8544 | T149: 57.9980 | U149: 88.5000 | V149: 79.6000 | W149: 53.1000 | X149: 31.8400 | Y149: 0.0000 | Z149: 84.9400 | AA149: 8.4940 | AB149: 86.9977 | AC149: 70.0000% | AD149: 是 | AE149: 否
A150: 2022010507 | B150: 63 | C150: 48 | D150: 2022010500 | E150: 马倩 | F150: 化工类22-5 | G150: 99.1848 | H150: 90.0000 | I150: 59.5109 | J150: 36.0000 | K150: 3.9300 | L150: 0.0000 | M150: 99.4409 | N150: 19.8882 | O150: 83.3176 | P150: 89.3333 | Q150: 84.5208 | R150: 0.0000 | S150: 84.5208 | T150: 59.1645 | U150: 83.0000 | V150: 72.2000 | W150: 49.8000 | X150: 28.8800 | Y150: 0.0000 | Z150: 78.6800 | AA150: 7.8680 | AB150: 86.9207 | AC150: 75.0000% | AD150: 是 | AE150: 否
A151: 2022010508 | B151: 47 | C151: 85 | D151: 2022010501 | E151: 屈芷晴 | F151: 化工类22-5 | G151: 99.0640 | H151: 90.0000 | I151: 59.4384 | J151: 36.0000 | K151: 4.2660 | L151: 0.0000 | M151: 99.7044 | N151: 19.9409 | O151: 79.0188 | P151: 90.3333 | Q151: 81.2817 | R151: 0.0000 | S151: 81.2817 | T151: 56.8972 | U151: 92.0000 | V151: 93.6000 | W151: 55.2000 | X151: 37.4400 | Y151: 18.0000 | Z151: 110.6400 | AA151: 11.0640 | AB151: 87.9021 | AC151: 70.0000% | AD151: 是 | AE151: 否
A152: 2022010509 | B152: 26 | C152: 51 | D152: 2022010502 | E152: 徐圆 | F152: 化工类22-5 | G152: 99.2150 | H152: 90.0000 | I152: 59.5290 | J152: 36.0000 | K152: 4.8000 | L152: 0.0000 | M152: 100.3290 | N152: 20.0658 | O152: 82.6190 | P152: 89.6667 | Q152: 84.0286 | R152: 4.0000 | S152: 88.0286 | T152: 61.6200 | U152: 89.5000 | V152: 74.4000 | W152: 53.7000 | X152: 29.7600 | Y152: 0.0000 | Z152: 83.4600 | AA152: 8.3460 | AB152: 90.0318 | AC152: 75.0000% | AD152: 是 | AE152: 否
A153: 2022010510 | B153: 67 | C153: 59 | D153: 2022010503 | E153: 袁祺瑞 | F153: 化工类22-5 | G153: 99.1546 | H153: 90.0000 | I153: 59.4928 | J153: 36.0000 | K153: 1.6500 | L153: 0.0000 | M153: 97.1428 | N153: 19.4286 | O153: 81.9512 | P153: 94.8500 | Q153: 84.5310 | R153: 2.0000 | S153: 86.5310 | T153: 60.5717 | U153: 69.0000 | V153: 60.3000 | W153: 41.4000 | X153: 24.1200 | Y153: 0.0000 | Z153: 65.5200 | AA153: 6.5520 | AB153: 86.5522 | AC153: 70.0000% | AD153: 是 | AE153: 是
A154: 2022010511 | B154: 132 | C154: 116 | D154: 2022010504 | E154: 李宇翔 | F154: 化工类22-5 | G154: 99.0338 | H154: 90.0000 | I154: 59.4203 | J154: 36.0000 | K154: 0.0000 | L154: 0.0000 | M154: 95.4203 | N154: 19.0841 | O154: 75.2235 | P154: 78.6667 | Q154: 75.9122 | R154: 0.0000 | S154: 75.9122 | T154: 53.1385 | U154: 76.0000 | V154: 64.8000 | W154: 45.6000 | X154: 25.9200 | Y154: 0.0000 | Z154: 71.5200 | AA154: 7.1520 | AB154: 79.3746 | AC154: 60.0000% | AD154: 是 | AE154: 是
A155: 2022010512 | B155: 119 | C155: 143 | D155: 2022010505 | E155: 叶斯波力·叶尔生 | F155: 化工类22-5 | G155: 99.1546 | H155: 90.0000 | I155: 59.4928 | J155: 36.0000 | K155: 6.6500 | L155: 0.0000 | M155: 102.1428 | N155: 20.4286 | O155: 71.3902 | P155: 78.6667 | Q155: 72.8455 | R155: 0.0000 | S155: 72.8455 | T155: 50.9919 | U155: 82.0000 | V155: 82.4000 | W155: 49.2000 | X155: 32.9600 | Y155: 16.0000 | Z155: 98.1600 | AA155: 9.8160 | AB155: 81.2364 | AC155: 50.0000% | AD155: 是 | AE155: 是
A156: 2022010513 | B156: 53 | C156: 72 | D156: 2022010506 | E156: 张席地 | F156: 化工类22-5 | G156: 99.5474 | H156: 90.0000 | I156: 59.7284 | J156: 36.0000 | K156: 7.0660 | L156: 0.0000 | M156: 102.7944 | N156: 20.5589 | O156: 80.2800 | P156: 87.5000 | Q156: 81.7240 | R156: 0.0000 | S156: 81.7240 | T156: 57.2068 | U156: 89.5000 | V156: 78.9000 | W156: 53.7000 | X156: 31.5600 | Y156: 14.0000 | Z156: 99.2600 | AA156: 9.9260 | AB156: 87.6917 | AC156: 70.0000% | AD156: 是 | AE156: 否
A157: 2022010514 | B157: 93 | C157: 86 | D157: 2022010507 | E157: 马凯园 | F157: 化工类22-5 | G157: 99.0338 | H157: 90.0000 | I157: 59.4203 | J157: 36.0000 | K157: 6.8000 | L157: 0.0000 | M157: 102.2203 | N157: 20.4441 | O157: 78.9035 | P157: 75.6667 | Q157: 78.2562 | R157: 0.0000 | S157: 78.2562 | T157: 54.7793 | U157: 85.5000 | V157: 79.2000 | W157: 51.3000 | X157: 31.6800 | Y157: 0.0000 | Z157: 82.9800 | AA157: 8.2980 | AB157: 83.5214 | AC157: 65.0000% | AD157: 是 | AE157: 否
A158: 2022010515 | B158: 138 | C158: 139 | D158: 2022010509 | E158: 李京运 | F158: 化工类22-5 | G158: 99.2755 | H158: 90.0000 | I158: 59.5653 | J158: 36.0000 | K158: 0.0000 | L158: 0.0000 | M158: 95.5653 | N158: 19.1131 | O158: 71.6341 | P158: 81.0667 | Q158: 73.5207 | R158: 0.0000 | S158: 73.5207 | T158: 51.4645 | U158: 80.0000 | V158: 75.7000 | W158: 48.0000 | X158: 30.2800 | Y158: 0.0000 | Z158: 78.2800 | AA158: 7.8280 | AB158: 78.4055 | AC158: 30.0000% | AD158: 是 | AE158: 否
A159: 2022010516 | B159: 115 | C159: 63 | D159: 2022010510 | E159: 李君成 | F159: 化工类22-5 | G159: 98.8827 | H159: 90.0000 | I159: 59.3296 | J159: 36.0000 | K159: 2.0000 | L159: 0.0000 | M159: 97.3296 | N159: 19.4659 | O159: 81.3780 | P159: 73.6667 | Q159: 79.8358 | R159: 0.0000 | S159: 79.8358 | T159: 55.8850 | U159: 67.5000 | V159: 60.0000 | W159: 40.5000 | X159: 24.0000 | Y159: 0.0000 | Z159: 64.5000 | AA159: 6.4500 | AB159: 81.8010 | AC159: 55.0000% | AD159: 是 | AE159: 否
A160: 2022010517 | B160: 118 | C160: 115 | D160: 2022010511 | E160: 罗小刚 | F160: 化工类22-5 | G160: 99.0035 | H160: 90.0000 | I160: 59.4021 | J160: 36.0000 | K160: 8.7000 | L160: 0.0000 | M160: 104.1021 | N160: 20.8204 | O160: 75.4118 | P160: 77.0000 | Q160: 75.7294 | R160: 0.0000 | S160: 75.7294 | T160: 53.0106 | U160: 79.0000 | V160: 75.9000 | W160: 47.4000 | X160: 30.3600 | Y160: 0.0000 | Z160: 77.7600 | AA160: 7.7760 | AB160: 81.6070 | AC160: 60.0000% | AD160: 是 | AE160: 是
A161: 2022010518 | B161: 62 | C161: 38 | D161: 2022010512 | E161: 陈俊逸 | F161: 化工类22-5 | G161: 99.3661 | H161: 90.0000 | I161: 59.6197 | J161: 36.0000 | K161: 7.3000 | L161: 0.0000 | M161: 102.9197 | N161: 20.5839 | O161: 84.9482 | P161: 81.5000 | Q161: 84.2586 | R161: 0.0000 | S161: 84.2586 | T161: 58.9810 | U161: 78.5000 | V161: 67.6000 | W161: 47.1000 | X161: 27.0400 | Y161: 0.0000 | Z161: 74.1400 | AA161: 7.4140 | AB161: 86.9789 | AC161: 80.0000% | AD161: 是 | AE161: 否
A162: 2022010519 | B162: 36 | C162: 26 | D162: 2022010514 | E162: 杜润男 | F162: 化工类22-5 | G162: 99.3359 | H162: 90.0000 | I162: 59.6015 | J162: 36.0000 | K162: 3.0000 | L162: 0.0000 | M162: 98.6015 | N162: 19.7203 | O162: 86.7677 | P162: 92.8750 | Q162: 87.9892 | R162: 0.0000 | S162: 87.9892 | T162: 61.5924 | U162: 81.5000 | V162: 75.8000 | W162: 48.9000 | X162: 30.3200 | Y162: 0.0000 | Z162: 79.2200 | AA162: 7.9220 | AB162: 89.2347 | AC162: 86.6667% | AD162: 是 | AE162: 否
A163: 2022010520 | B163: 33 | C163: 43 | D163: 2022010516 | E163: 郭智硕 | F163: 化工类22-5 | G163: 99.5474 | H163: 90.0000 | I163: 59.7284 | J163: 36.0000 | K163: 4.5340 | L163: 0.0000 | M163: 100.2624 | N163: 20.0525 | O163: 84.3059 | P163: 81.0000 | Q163: 83.6447 | R163: 6.0000 | S163: 89.6447 | T163: 62.7513 | U163: 68.0000 | V163: 62.3000 | W163: 40.8000 | X163: 24.9200 | Y163: 0.0000 | Z163: 65.7200 | AA163: 6.5720 | AB163: 89.3758 | AC163: 65.0000% | AD163: 是 | AE163: 否
A164: 2022010521 | B164: 40 | C164: 25 | D164: 2022010518 | E164: 贾思远 | F164: 化工类22-5 | G164: 99.5474 | H164: 90.0000 | I164: 59.7284 | J164: 36.0000 | K164: 3.0000 | L164: 0.0000 | M164: 98.7284 | N164: 19.7457 | O164: 86.7882 | P164: 87.6667 | Q164: 86.9639 | R164: 0.0000 | S164: 86.9639 | T164: 60.8747 | U164: 80.5000 | V164: 66.9000 | W164: 48.3000 | X164: 26.7600 | Y164: 6.0000 | Z164: 81.0600 | AA164: 8.1060 | AB164: 88.7264 | AC164: 80.0000% | AD164: 是 | AE164: 否
A165: 2022010522 | B165: 5 | C165: 27 | D165: 2022010519 | E165: 李佳俊 | F165: 化工类22-5 | G165: 99.5474 | H165: 90.0000 | I165: 59.7284 | J165: 36.0000 | K165: 4.0340 | L165: 0.0000 | M165: 99.7624 | N165: 19.9525 | O165: 86.3012 | P165: 84.3333 | Q165: 85.9076 | R165: 6.0000 | S165: 91.9076 | T165: 64.3353 | U165: 89.5000 | V165: 87.0000 | W165: 53.7000 | X165: 34.8000 | Y165: 16.0000 | Z165: 104.5000 | AA165: 10.4500 | AB165: 94.7378 | AC165: 90.0000% | AD165: 是 | AE165: 否
A166: 2022010523 | B166: 100 | C166: 131 | D166: 2022010520 | E166: 孙祖麟 | F166: 化工类22-5 | G166: 99.5171 | H166: 90.0000 | I166: 59.7103 | J166: 36.0000 | K166: 2.6700 | L166: 0.0000 | M166: 98.3803 | N166: 19.6761 | O166: 73.7975 | P166: 84.6667 | Q166: 75.9713 | R166: 0.0000 | S166: 75.9713 | T166: 53.1799 | U166: 88.0000 | V166: 75.5000 | W166: 52.8000 | X166: 30.2000 | Y166: 18.0000 | Z166: 101.0000 | AA166: 10.1000 | AB166: 82.9560 | AC166: 63.1579% | AD166: 是 | AE166: 是
A167: 2022012319 | B167: 164 | C167: 164 | D167: 2022010521 | E167: 吴振宇 | F167: 化工类22-5 | G167: 99.3359 | H167: 90.0000 | I167: 59.6015 | J167: 36.0000 | K167: 0.0000 | L167: 0.0000 | M167: 95.6015 | N167: 19.1203 | O167: 57.3244 | P167: 71.4000 | Q167: 60.1395 | R167: 0.0000 | S167: 60.1395 | T167: 42.0977 | U167: 70.0000 | V167: 71.2000 | W167: 42.0000 | X167: 28.4800 | Y167: 0.0000 | Z167: 70.4800 | AA167: 7.0480 | AB167: 68.2660 | AC167: 25.0000% | AD167: 是 | AE167: 是
A168: 2022012320 | B168: 121 | C168: 128 | D168: 2022012319 | E168: 李文杰 | F168: 化工类22-5 | G168: 96.7377 | H168: 90.0000 | I168: 58.0426 | J168: 36.0000 | K168: 6.3840 | L168: 0.0000 | M168: 100.4266 | N168: 20.0853 | O168: 74.4951 | P168: 88.8545 | Q168: 77.3670 | R168: 0.0000 | S168: 77.3670 | T168: 54.1569 | U168: 69.5000 | V168: 64.0000 | W168: 41.7000 | X168: 25.6000 | Y168: 0.0000 | Z168: 67.3000 | AA168: 6.7300 | AB168: 80.9722 | AC168: 55.0000% | AD168: 是 | AE168: 否

Sheet 必修课排名 (hidden)
A1: 学号 | B1: 姓名 | C1: 智育成绩 | D1: 排名
A2: 2022010455 | B2: 王德民 | C2: 92.90243902 | D2: 1 | G2: 2022010364 | H2: =VLOOKUP(G2,A:D,4,0) -> 52
A3: 2022010368 | B3: 张露 | C3: 91.9097561 | D3: 2 | G3: 2022010365 | H3: 29
A4: 2022010498 | B4: 陈雨涵 | C4: 91.285 | D4: 3 | G4: 2022010366 | H4: 65
A5: 2022010452 | B5: 康胜 | C5: 91.19294118 | D5: 4 | G5: 2022010367 | H5: 94
A6: 2022010466 | B6: 李春辉 | C6: 90.95616438 | D6: 5 | G6: 2022010368 | H6: 2
A7: 2022010408 | B7: 许文轲 | C7: 90.55058824 | D7: 6 | G7: 2022010369 | H7: 110
A8: 2022010373 | B8: 王晴宇 | C8: 90.45882353 | D8: 7 | G8: 2022010370 | H8: 136
A9: 2022010434 | B9: 黄宁 | C9: 88.83287671 | D9: 8 | G9: 2022010371 | H9: 81
A10: 2022010407 | B10: 叶海宇 | C10: 88.74117647 | D10: 9 | G10: 2022010372 | H10: 68
A11: 2022010392 | B11: 吴照飞 | C11: 88.48941176 | D11: 10 | G11: 2022010373 | H11: 7
A12: 2022010397 | B12: 李安然 | C12: 88.26823529 | D12: 11 | G12: 2022010374 | H12: 14
A13: 2022010383 | B13: 刘子瑞 | C13: 88.23764706 | D13: 12 | G13: 2022010376 | H13: 132
A14: 2022010451 | B14: 蒋子强 | C14: 88.19512195 | D14: 13 | G14: 2022010377 | H14: 64
A15: 2022010374 | B15: 袁佳怡 | C15: 88.17411765 | D15: 14 | G15: 2022010378 | H15: 46
A16: 2022010387 | B16: 陈方旭 | C16: 88.0097561 | D16: 15 | G16: 2022010379 | H16: 93
A17: 2022010436 | B17: 孙涵 | C17: 88.00731707 | D17: 16 | G17: 2022010380 | H17: 163
A18: 2022010478 | B18: 李煌 | C18: 87.98823529 | D18: 17 | G18: 2022010381 | H18: 162
A19: 2022010393 | B19: 徐森 | C19: 87.7425 | D19: 18 | G19: 2022010382 | H19: 56
A20: 2022010386 | B20: 李陶然 | C20: 87.72941176 | D20: 19 | G20: 2022010383 | H20: 12
A21: 2022010449 | B21: 郑少杰 | C21: 87.54588235 | D21: 20 | G21: 2022010384 | H21: 35
A22: 2022010385 | B22: 龚泽恩 | C22: 87.42117647 | D22: 21 | G22: 2022010385 | H22: 21
A23: 2022010482 | B23: 傅世坤 | C23: 87.41882353 | D23: 22 | G23: 2022010386 | H23: 19
A24: 2022010456 | B24: 吴金琪 | C24: 87.31764706 | D24: 23 | G24: 2022010387 | H24: 15
A25: 2022010402 | B25: 季睿 | C25: 87.30487805 | D25: 24 | G25: 2022010388 | H25: 117
A26: 2022010518 | B26: 贾思远 | C26: 86.78823529 | D26: 25 | G26: 2022010389 | H26: 108
A27: 2022010514 | B27: 杜润男 | C27: 86.76774194 | D27: 26 | G27: 2022010390 | H27: 37
A28: 2022010519 | B28: 李佳俊 | C28: 86.30117647 | D28: 27 | G28: 2022010391 | H28: 152
A29: 2022010422 | B29: 江锦欣 | C29: 86.22352941 | D29: 28 | G29: 2022010392 | H29: 10
A30: 2022010365 | B30: 杨秋瑶 | C30: 85.65609756 | D30: 29 | G30: 2022010393 | H30: 18
A31: 2022010513 | B31: 陈心 | C31: 85.54878049 | D31: 30 | G31: 2022010394 | H31: 47
A32: 2022010490 | B32: 严臻睿 | C32: 85.45647059 | D32: 31 | G32: 2022010395 | H32: 159
A33: 2022010470 | B33: 张润霞 | C33: 85.45121951 | D33: 32 | G33: 2022012311 | H33: 138
A34: 2022010412 | B34: 代肖彤 | C34: 85.27529412 | D34: 33 | G34: 2022012312 | H34: =VLOOKUP(G34,A:D,4,0) -> 79
A35: 2022010491 | B35: 张志彬 | C35: 85.25609756 | D35: 34 | G35: 2022010396 | H35: 122
A36: 2022010384 | B36: 吴立新 | C36: 85.11764706 | D36: 35 | G36: 2022010397 | H36: 11
A37: 2022010401 | B37: 贾文青 | C37: 85.08780488 | D37: 36 | G37: 2022010398 | H37: 154
A38: 2022010390 | B38: 申溱 | C38: 84.99764706 | D38: 37 | G38: 2022010399 | H38: 69
A39: 2022010512 | B39: 陈俊逸 | C39: 84.94823529 | D39: 38 | G39: 2022010400 | H39: 40
A40: 2022010454 | B40: 孙琪桐 | C40: 84.81647059 | D40: 39 | G40: 2022010401 | H40: 36
A41: 2022010400 | B41: 王一伊 | C41: 84.66585366 | D41: 40 | G41: 2022010402 | H41: 24
A42: 2022010522 | B42: 熊俊程 | C42: 84.6097561 | D42: 41 | G42: 2022010403 | H42: 102
A43: 2022010431 | B43: 贺婕 | C43: 84.42352941 | D43: 42 | G43: 2022010404 | H43: 70
A44: 2022010516 | B44: 郭智硕 | C44: 84.30588235 | D44: 43 | G44: 2022010405 | H44: 57
A45: 2022010459 | B45: 朱行健 | C45: 84.25176471 | D45: 44 | G45: 2022010406 | H45: 66
A46: 2022010429 | B46: 程实 | C46: 83.90823529 | D46: 45 | G46: 2022010407 | H46: 9
A47: 2022010378 | B47: 左丁伟 | C47: 83.49 | D47: 46 | G47: 2022010408 | H47: 6
A48: 2022010394 | B48: 张之翼 | C48: 83.33411765 | D48: 47 | G48: 2022010409 | H48: 91
A49: 2022010500 | B49: 马倩 | C49: 83.31764706 | D49: 48 | G49: 2022010410 | H49: 145
A50: 2022010448 | B50: 王增智 | C50: 83.24705882 | D50: 49 | G50: 2022010411 | H50: 133
A51: 2022010494 | B51: 唐樱菲 | C51: 82.73647059 | D51: 50 | G51: 2022010412 | H51: 33
A52: 2022010502 | B52: 徐圆 | C52: 82.61904762 | D52: 51 | G52: 2022010413 | H52: 123
A53: 2022010364 | B53: 张姝瑶 | C53: 82.58823529 | D53: 52 | G53: 2022010414 | H53: 76
A54: 2022010486 | B54: 邵科元 | C54: 82.21219512 | D54: 53 | G54: 2022010417 | H54: 141
A55: 2022010499 | B55: 曹炜曼 | C55: 82.19294118 | D55: 54 | G55: 2022010418 | H55: 124
A56: 2022010488 | B56: 王佳航 | C56: 82.18 | D56: 55 | G56: 2022010419 | H56: 90
A57: 2022010382 | B57: 张铸 | C57: 82.16941176 | D57: 56 | G57: 2022010420 | H57: 150
A58: 2022010405 | B58: 李子敬 | C58: 82.0775 | D58: 57 | G58: 2022010421 | H58: 84
A59: 2022010496 | B59: 张鑫 | C59: 82.06829268 | D59: 58 | G59: 2022010422 | H59: 28
A60: 2022010503 | B60: 袁祺瑞 | C60: 81.95121951 | D60: 59 | G60: 2022010423 | H60: 121
A61: 2022010441 | B61: 白兆 | C61: 81.94588235 | D61: 60 | G61: 2022010424 | H61: 120
A62: 2022010492 | B62: 钮缨雪 | C62: 81.87073171 | D62: 61 | G62: 2022010425 | H62: 130
A63: 2022010438 | B63: 张涵婷 | C63: 81.68235294 | D63: 62 | G63: 2022010426 | H63: 71
A64: 2022010510 | B64: 李君成 | C64: 81.37804878 | D64: 63 | G64: 2022010427 | H64: 100
A65: 2022010377 | B65: 刘超 | C65: 81.25176471 | D65: 64 | G65: 2022012313 | H65: 153
A66: 2022010366 | B66: 张璐昕 | C66: 81.18 | D66: 65 | G66: 2022012314 | H66: =VLOOKUP(G66,A:D,4,0) -> 166
A67: 2022010406 | B67: 彭莎莎 | C67: 81.10117647 | D67: 66 | G67: 2022010428 | H67: 161
A68: 2022010493 | B68: 付锦依 | C68: 80.96341463 | D68: 67 | G68: 2022010429 | H68: 45
A69: 2022010372 | B69: 史佳悦 | C69: 80.94117647 | D69: 68 | G69: 2022010430 | H69: 89
A70: 2022010399 | B70: 邱绮慧 | C70: 80.77560976 | D70: 69 | G70: 2022010431 | H70: 42
A71: 2022010404 | B71: 付晨汐 | C71: 80.39268293 | D71: 70 | G71: 2022010432 | H71: 92
A72: 2022010426 | B72: 赵群 | C72: 80.32 | D72: 71 | G72: 2022010433 | H72: 107
A73: 2022010506 | B73: 张席地 | C73: 80.28 | D73: 72 | G73: 2022010434 | H73: 8
A74: 2022010461 | B74: 吴芷璇 | C74: 80.00705882 | D74: 73 | G74: 2022010435 | H74: 97
A75: 2022010465 | B75: 陈飞月 | C75: 79.95529412 | D75: 74 | G75: 2022010436 | H75: 16
A76: 2022010471 | B76: 张支铭 | C76: 79.91058824 | D76: 75 | G76: 2022010437 | H76: 111
A77: 2022010414 | B77: 潘恒懿 | C77: 79.81176471 | D77: 76 | G77: 2022010438 | H77: 62
A78: 2022010469 | B78: 许馨月 | C78: 79.81176471 | D78: 77 | G78: 2022010439 | H78: 126
A79: 2022010445 | B79: 赵国平 | C79: 79.56941176 | D79: 78 | G79: 2022010440 | H79: 83
A80: 2022012312 | B80: 徐峥 | C80: 79.50823529 | D80: 79 | G80: 2022010441 | H80: 60
A81: 2022010443 | B81: 杨志文 | C81: 79.40941176 | D81: 80 | G81: 2022010442 | H81: 137
A82: 2022010371 | B82: 何丽鸿 | C82: 79.39294118 | D82: 81 | G82: 2022010443 | H82: 80
A83: 2022010477 | B83: 张帅 | C83: 79.31764706 | D83: 82 | G83: 2022010444 | H83: 99
A84: 2022010440 | B84: 黄颖聪 | C84: 79.24705882 | D84: 83 | G84: 2022010445 | H84: 78
A85: 2022010421 | B85: 季磊 | C85: 79.12470588 | D85: 84 | G85: 2022010446 | H85: 103
A86: 2022010501 | B86: 屈芷晴 | C86: 79.01882353 | D86: 85 | G86: 2022010447 | H86: 87
A87: 2022010507 | B87: 马凯园 | C87: 78.90352941 | D87: 86 | G87: 2022010448 | H87: 49
A88: 2022010447 | B88: 王冰宇 | C88: 78.84390244 | D88: 87 | G88: 2022010449 | H88: 20
A89: 2022010467 | B89: 石彩君 | C89: 78.73647059 | D89: 88 | G89: 2022010450 | H89: 158
A90: 2022010430 | B90: 马瑜含 | C90: 78.71294118 | D90: 89 | G90: 2022010451 | H90: 13
A91: 2022010419 | B91: 史国柱 | C91: 78.63529412 | D91: 90 | G91: 2022010452 | H91: 4
A92: 2022010409 | B92: 周家艺 | C92: 78.54117647 | D92: 91 | G92: 2022010453 | H92: 112
A93: 2022010432 | B93: 刘雨佳 | C93: 78.46352941 | D93: 92 | G93: 2022010454 | H93: 39
A94: 2022010379 | B94: 孙科 | C94: 78.40235294 | D94: 93 | G94: 2022010455 | H94: 1
A95: 2022010367 | B95: 周芹 | C95: 78.38352941 | D95: 94 | G95: 2022010456 | H95: 23
A96: 2022010458 | B96: 赵帅 | C96: 78.32 | D96: 95 | G96: 2022010457 | H96: 135
A97: 2022010483 | B97: 李浩永 | C97: 78.20470588 | D97: 96 | G97: 2022010458 | H97: 95
A98: 2022010435 | B98: 秦婧瑶 | C98: 77.98823529 | D98: 97 | G98: 2022010459 | H98: =VLOOKUP(G98,A:D,4,0) -> 44
A99: 2022010487 | B99: 涂景豪 | C99: 77.91764706 | D99: 98 | G99: 2022012316 | H99: 134
A100: 2022010444 | B100: 汪洋 | C100: 77.85853659 | D100: 99 | G100: 2022010460 | H100: 155
A101: 2022010427 | B101: 周慧林 | C101: 77.69882353 | D101: 100 | G101: 2022010461 | H101: 73
A102: 2022010468 | B102: 吴忆 | C102: 77.52941176 | D102: 101 | G102: 2022010462 | H102: 142
A103: 2022010403 | B103: 成思宇 | C103: 77.46341463 | D103: 102 | G103: 2022010463 | H103: 125
A104: 2022010446 | B104: 金立民 | C104: 77.31529412 | D104: 103 | G104: 2022010464 | H104: 105
A105: 2022010489 | B105: 谢林洲 | C105: 77.22352941 | D105: 104 | G105: 2022010465 | H105: 74
A106: 2022010464 | B106: 邓姣 | C106: 77.15365854 | D106: 105 | G106: 2022010466 | H106: 5
A107: 2022010480 | B107: 杨明涛 | C107: 77.12941176 | D107: 106 | G107: 2022010467 | H107: 88
A108: 2022010433 | B108: 陈禾婕 | C108: 77.12926829 | D108: 107 | G108: 2022010468 | H108: 101
A109: 2022010389 | B109: 牛浩镔 | C109: 77.01428571 | D109: 108 | G109: 2022010469 | H109: 77
A110: 2022010473 | B110: 刘源兴 | C110: 76.85176471 | D110: 109 | G110: 2022010470 | H110: 32
A111: 2022010369 | B111: 李越 | C111: 76.54117647 | D111: 110 | G111: 2022010471 | H111: 75
A112: 2022010437 | B112: 王晓弘 | C112: 76.48470588 | D112: 111 | G112: 2022010472 | H112: 144
A113: 2022010453 | B113: 李成歆 | C113: 75.77176471 | D113: 112 | G113: 2022010473 | H113: 109
A114: 2022010476 | B114: 何岩松 | C114: 75.76705882 | D114: 113 | G114: 2022010474 | H114: 118
A115: 2022010497 | B115: 达娃卓玛 | C115: 75.74390244 | D115: 114 | G115: 2022010475 | H115: 127
A116: 2022010511 | B116: 罗小刚 | C116: 75.41176471 | D116: 115 | G116: 2022010476 | H116: 113
A117: 2022010504 | B117: 李宇翔 | C117: 75.22352941 | D117: 116 | G117: 2022010477 | H117: 82
A118: 2022010388 | B118: 缪祥麟 | C118: 75.13170732 | D118: 117 | G118: 2022010478 | H118: 17
A119: 2022010474 | B119: 杨志远 | C119: 75.03658537 | D119: 118 | G119: 2022010479 | H119: 129
A120: 2022010481 | B120: 施孔君 | C120: 74.97560976 | D120: 119 | G120: 2022010480 | H120: 106
A121: 2022010424 | B121: 席振昌 | C121: 74.90117647 | D121: 120 | G121: 2022010481 | H121: 119
A122: 2022010423 | B122: 汪礼俊 | C122: 74.83529412 | D122: 121 | G122: 2022010482 | H122: 22
A123: 2022010396 | B123: 邵兰贺 | C123: 74.74878049 | D123: 122 | G123: 2022010483 | H123: 96
A124: 2022010413 | B124: 陈恒宇 | C124: 74.73411765 | D124: 123 | G124: 2022010484 | H124: 147
A125: 2022010418 | B125: 王明堃 | C125: 74.63529412 | D125: 124 | G125: 2022010485 | H125: 140
A126: 2022010463 | B126: 孙千翔 | C126: 74.63529412 | D126: 125 | G126: 2022010486 | H126: 53
A127: 2022010439 | B127: 张心怡 | C127: 74.60470588 | D127: 126 | G127: 2022010487 | H127: 98
A128: 2022010475 | B128: 蔡进鹏 | C128: 74.59756098 | D128: 127 | G128: 2022010488 | H128: 55
A129: 2022012319 | B129: 李文杰 | C129: 74.49512195 | D129: 128 | G129: 2022010489 | H129: 104
A130: 2022010479 | B130: 杨广军 | C130: 74.38823529 | D130: 129 | G130: 2022010490 | H130: =VLOOKUP(G130,A:D,4,0) -> 31
A131: 2022010425 | B131: 闫杨奇昊 | C131: 73.94352941 | D131: 130 | G131: 2022010491 | H131: 34
A132: 2022010520 | B132: 孙祖麟 | C132: 73.7975 | D132: 131 | G132: 2022012317 | H132: 156
A133: 2022010376 | B133: 刘珣 | C133: 73.69512195 | D133: 132 | G133: 2022012318 | H133: 160
A134: 2022010411 | B134: 姚锦栋 | C134: 73.44705882 | D134: 133 | G134: 2022010492 | H134: 61
A135: 2022012316 | B135: 陈语 | C135: 73.24705882 | D135: 134 | G135: 2022010493 | H135: 67
A136: 2022010457 | B136: 杨乐辰 | C136: 73.24390244 | D136: 135 | G136: 2022010494 | H136: 50
A137: 2022010370 | B137: 马海霞 | C137: 72.07058824 | D137: 136 | G137: 2022010495 | H137: 151
A138: 2022010442 | B138: 尹泽 | C138: 72 | D138: 137 | G138: 2022010496 | H138: 58
A139: 2022012311 | B139: 布威麦尔耶姆·麦麦提图尔荪 | C139: 71.83764706 | D139: 138 | G139: 2022010497 | H139: 114
A140: 2022010509 | B140: 李京运 | C140: 71.63414634 | D140: 139 | G140: 2022010498 | H140: 3
A141: 2022010485 | B141: 刘帅杰 | C141: 71.54390244 | D141: 140 | G141: 2022010499 | H141: 54
A142: 2022010417 | B142: 段少坤 | C142: 71.44878049 | D142: 141 | G142: 2022010500 | H142: 48
A143: 2022010462 | B143: 胡咪 | C143: 71.41463415 | D143: 142 | G143: 2022010501 | H143: 85
A144: 2022010505 | B144: 叶斯波力·叶尔生 | C144: 71.3902439 | D144: 143 | G144: 2022010502 | H144: 51
A145: 2022010472 | B145: 王奕喆 | C145: 71.35121951 | D145: 144 | G145: 2022010503 | H145: 59
A146: 2022010410 | B146: 王子路 | C146: 71.34878049 | D146: 145 | G146: 2022010504 | H146: 116
A147: 2022010517 | B147: 郝信淳 | C147: 71.24146341 | D147: 146 | G147: 2022010505 | H147: 143
A148: 2022010484 | B148: 李芃钰 | C148: 71.1804878 | D148: 147 | G148: 2022010506 | H148: 72
A149: 2022012320 | B149: 阿布杜拉·居乃都拉 | C149: 70.93902439 | D149: 148 | G149: 2022010507 | H149: 86
A150: 2022010523 | B150: 章俊阳 | C150: 70.8097561 | D150: 149 | G150: 2022010508 | H150: 165
A151: 2022010420 | B151: 曹坤阳 | C151: 70.6195122 | D151: 150 | G151: 2022010509 | H151: 139
A152: 2022010495 | B152: 何欣怡 | C152: 70.43902439 | D152: 151 | G152: 2022010510 | H152: 63
A153: 2022010391 | B153: 王禹程 | C153: 70.0195122 | D153: 152 | G153: 2022010511 | H153: 115
A154: 2022012313 | B154: 巴合加娜提·加冷 | C154: 69.96341463 | D154: 153 | G154: 2022010512 | H154: 38
A155: 2022010398 | B155: 杨慧 | C155: 69.30487805 | D155: 154 | G155: 2022010513 | H155: 30
A156: 2022010460 | B156: 努尔斯巴·买提库尔班 | C156: 68.70588235 | D156: 155 | G156: 2022010514 | H156: 26
A157: 2022012317 | B157: 萨比尔·库尔班江 | C157: 68.59756098 | D157: 156 | G157: 2022010515 | H157: 157
A158: 2022010515 | B158: 郭家栋 | C158: 67.55853659 | D158: 157 | G158: 2022010516 | H158: 43
A159: 2022010450 | B159: 阿坚全 | C159: 65.1097561 | D159: 158 | G159: 2022010517 | H159: 146
A160: 2022010395 | B160: 赵志帆 | C160: 64.75609756 | D160: 159 | G160: 2022010518 | H160: 25
A161: 2022012318 | B161: 阿尔帕提·阿卜杜合力力 | C161: 64.75609756 | D161: 160 | G161: 2022010519 | H161: 27
A162: 2022010428 | B162: 马芬 | C162: 64.66341463 | D162: 161 | G162: 2022010520 | H162: =VLOOKUP(G162,A:D,4,0) -> 131
A163: 2022010381 | B163: 耿智盖灵 | C163: 64 | D163: 162 | G163: 2022010521 | H163: 164
A164: 2022010380 | B164: 张茂霖 | C164: 61.51219512 | D164: 163 | G164: 2022010522 | H164: 41
A165: 2022010521 | B165: 吴振宇 | C165: 57.32439024 | D165: 164 | G165: 2022010523 | H165: 149
A166: 2022010508 | B166: 郝政凯 | C166: 54.85365854 | D166: 165 | G166: 2022012319 | H166: 128
A167: 2022012314 | B167: 努尔兰·吐尔军 | C167: 46.98780488 | D167: 166 | G167: 2022012320 | H167: 148

Sheet 综测排名 (hidden)
A1: 学号 | B1: 姓名 | C1: 智育成绩 | E1: 综合测评总分
A2: 2022010461 | B2: 吴芷璇 | C2: 80.00705882 | D2: 1 | E2: =VLOOKUP(A2,专业排名汇总表!D102:AB267,25,0) -> 107.5263 | H2: 2022010364 | I2: =VLOOKUP(H:H,A:D,4,0) -> 54
A3: 2022010498 | B3: 陈雨涵 | C3: 91.285 | D3: 2 | E3: =VLOOKUP(A3,专业排名汇总表!D141:AB306,25,0) -> 101.6692 | H3: 2022010365 | I3: =VLOOKUP(H:H,A:D,4,0) -> 10
A4: 2022010434 | B4: 黄宁 | C4: 88.83287671 | D4: 3 | E4: =VLOOKUP(A4,专业排名汇总表!D74:AB239,25,0) -> 100.0985 | H4: 2022010366 | I4: 57
A5: 2022010455 | B5: 王德民 | C5: 92.90243902 | D5: 4 | E5: =VLOOKUP(A5,专业排名汇总表!D95:AB260,25,0) -> 95.2034 | H5: 2022010367 | I5: 76
A6: 2022010433 | B6: 陈禾婕 | C6: 77.12926829 | D6: 5 | E6: =VLOOKUP(A6,专业排名汇总表!D73:AB238,25,0) -> 93.0631 | H6: 2022010368 | I6: 8
A7: 2022010373 | B7: 王晴宇 | C7: 90.45882353 | D7: 6 | E7: =VLOOKUP(A7,专业排名汇总表!D12:AB177,25,0) -> 93.7298 | H7: 2022010369 | I7: 103
A8: 2022010519 | B8: 李佳俊 | C8: 86.30117647 | D8: 7 | E8: =VLOOKUP(A8,专业排名汇总表!D162:AB327,25,0) -> 94.7378 | H8: 2022010370 | I8: 161
A9: 2022010368 | B9: 张露 | C9: 91.9097561 | D9: 8 | E9: =VLOOKUP(A9,专业排名汇总表!D7:AB172,25,0) -> 93.0457 | H9: 2022010371 | I9: 93
A10: 2022010466 | B10: 李春辉 | C10: 90.95616438 | D10: 9 | E10: =VLOOKUP(A10,专业排名汇总表!D107:AB272,25,0) -> 92.8967 | H10: 2022010372 | I10: 79
A11: 2022010365 | B11: 杨秋瑶 | C11: 85.65609756 | D11: 10 | E11: =VLOOKUP(A11,专业排名汇总表!D4:AB169,25,0) -> 92.8682 | H11: 2022010373 | I11: 6
A12: 2022010459 | B12: 朱行健 | C12: 84.25176471 | D12: 11 | E12: =VLOOKUP(A12,专业排名汇总表!D99:AB264,25,0) -> 94.0438 | H12: 2022010374 | I12: 13
A13: 2022010491 | B13: 张志彬 | C13: 85.25609756 | D13: 12 | E13: =VLOOKUP(A13,专业排名汇总表!D132:AB297,25,0) -> 92.2388 | H13: 2022010376 | I13: 145
A14: 2022010374 | B14: 袁佳怡 | C14: 88.17411765 | D14: 13 | E14: =VLOOKUP(A14,专业排名汇总表!D13:AB178,25,0) -> 92.4876 | H14: 2022010377 | I14: 98
A15: 2022010452 | B15: 康胜 | C15: 91.19294118 | D15: 14 | E15: =VLOOKUP(A15,专业排名汇总表!D92:AB257,25,0) -> 91.9157 | H15: 2022010378 | I15: 21
A16: 2022010408 | B16: 许文轲 | C16: 90.55058824 | D16: 15 | E16: =VLOOKUP(A16,专业排名汇总表!D48:AB213,25,0) -> 93.0603 | H16: 2022010379 | I16: 91
A17: 2022010451 | B17: 蒋子强 | C17: 88.19512195 | D17: 16 | E17: =VLOOKUP(A17,专业排名汇总表!D91:AB256,25,0) -> 91.6295 | H17: 2022010380 | I17: 163
A18: 2022010436 | B18: 孙涵 | C18: 88.00731707 | D18: 17 | E18: =VLOOKUP(A18,专业排名汇总表!D76:AB241,25,0) -> 91.3585 | H18: 2022010381 | I18: 159
A19: 2022010397 | B19: 李安然 | C19: 88.26823529 | D19: 18 | E19: =VLOOKUP(A19,专业排名汇总表!D37:AB202,25,0) -> 91.1392 | H19: 2022010382 | I19: 80
A20: 2022010392 | B20: 吴照飞 | C20: 88.48941176 | D20: 19 | E20: =VLOOKUP(A20,专业排名汇总表!D30:AB195,25,0) -> 90.6172 | H20: 2022010383 | I20: 38
A21: 2022010407 | B21: 叶海宇 | C21: 88.74117647 | D21: 20 | E21: =VLOOKUP(A21,专业排名汇总表!D47:AB212,25,0) -> 90.4738 | H21: 2022010384 | I21: 74
A22: 2022010378 | B22: 左丁伟 | C22: 83.49 | D22: 21 | E22: =VLOOKUP(A22,专业排名汇总表!D16:AB181,25,0) -> 90.9888 | H22: 2022010385 | I22: 39
A23: 2022010402 | B23: 季睿 | C23: 87.30487805 | D23: 22 | E23: =VLOOKUP(A23,专业排名汇总表!D42:AB207,25,0) -> 90.1226 | H23: 2022010386 | I23: 40
A24: 2022010502 | B24: 徐圆 | C24: 82.61904762 | D24: 23 | E24: =VLOOKUP(A24,专业排名汇总表!D145:AB310,25,0) -> 90.0318 | H24: 2022010387 | I24: 27
A25: 2022010470 | B25: 张润霞 | C25: 85.45121951 | D25: 24 | E25: =VLOOKUP(A25,专业排名汇总表!D111:AB276,25,0) -> 91.6049 | H25: 2022010388 | I25: 109
A26: 2022010400 | B26: 王一伊 | C26: 84.66585366 | D26: 25 | E26: =VLOOKUP(A26,专业排名汇总表!D40:AB205,25,0) -> 92.6828 | H26: 2022010389 | I26: 60
A27: 2022010393 | B27: 徐森 | C27: 87.7425 | D27: 26 | E27: =VLOOKUP(A27,专业排名汇总表!D31:AB196,25,0) -> 89.6014 | H27: 2022010390 | I27: 47
A28: 2022010387 | B28: 陈方旭 | C28: 88.0097561 | D28: 27 | E28: =VLOOKUP(A28,专业排名汇总表!D25:AB190,25,0) -> 89.5877 | H28: 2022010391 | I28: 143
A29: 2022010401 | B29: 贾文青 | C29: 85.08780488 | D29: 28 | E29: =VLOOKUP(A29,专业排名汇总表!D41:AB206,25,0) -> 89.4644 | H29: 2022010392 | I29: 19
A30: 2022010463 | B30: 孙千翔 | C30: 74.63529412 | D30: 29 | E30: =VLOOKUP(A30,专业排名汇总表!D104:AB269,25,0) -> 90.0609 | H30: 2022010393 | I30: 26
A31: 2022010516 | B31: 郭智硕 | C31: 84.30588235 | D31: 30 | E31: =VLOOKUP(A31,专业排名汇总表!D159:AB324,25,0) -> 89.3758 | H31: 2022010394 | I31: 50
A32: 2022010514 | B32: 杜润男 | C32: 86.76774194 | D32: 31 | E32: =VLOOKUP(A32,专业排名汇总表!D157:AB322,25,0) -> 89.2347 | H32: 2022010395 | I32: 162
A33: 2022010478 | B33: 李煌 | C33: 87.98823529 | D33: 32 | E33: =VLOOKUP(A33,专业排名汇总表!D119:AB284,25,0) -> 89.4826 | H33: 2022012311 | I33: 135
A34: 2022010482 | B34: 傅世坤 | C34: 87.41882353 | D34: 33 | E34: =VLOOKUP(A34,专业排名汇总表!D123:AB288,25,0) -> 89.0083 | H34: 2022012312 | I34: 86
A35: 2022010422 | B35: 江锦欣 | C35: 86.22352941 | D35: 34 | E35: =VLOOKUP(A35,专业排名汇总表!D60:AB225,25,0) -> 88.9849 | H35: 2022010396 | I35: 121
A36: 2022010449 | B36: 郑少杰 | C36: 87.54588235 | D36: 35 | E36: =VLOOKUP(A36,专业排名汇总表!D89:AB254,25,0) -> 88.7889 | H36: 2022010397 | I36: 18
A37: 2022010454 | B37: 孙琪桐 | C37: 84.81647059 | D37: 36 | E37: =VLOOKUP(A37,专业排名汇总表!D94:AB259,25,0) -> 89.5846 | H37: 2022010398 | I37: 134
A38: 2022010448 | B38: 王增智 | C38: 83.24705882 | D38: 37 | E38: =VLOOKUP(A38,专业排名汇总表!D88:AB253,25,0) -> 89.7655 | H38: 2022010399 | I38: 43
A39: 2022010383 | B39: 刘子瑞 | C39: 88.23764706 | D39: 38 | E39: =VLOOKUP(A39,专业排名汇总表!D21:AB186,25,0) ->  | H39: 2022010400 | I39: 25
A40: 2022010385 | B40: 龚泽恩 | C40: 87.42117647 | D40: 39 | E40: =VLOOKUP(A40,专业排名汇总表!D23:AB188,25,0) -> 88.4903 | H40: 2022010401 | I40: 28
A41: 2022010386 | B41: 李陶然 | C41: 87.72941176 | D41: 40 | E41: =VLOOKUP(A41,专业排名汇总表!D24:AB189,25,0) -> 88.3477 | H41: 2022010402 | I41: 22
A42: 2022010406 | B42: 彭莎莎 | C42: 81.10117647 | D42: 41 | E42: =VLOOKUP(A42,专业排名汇总表!D46:AB211,25,0) -> 88.2939 | H42: 2022010403 | I42: 122
A43: 2022010518 | B43: 贾思远 | C43: 86.78823529 | D43: 42 | E43: =VLOOKUP(A43,专业排名汇总表!D161:AB326,25,0) -> 88.7264 | H43: 2022010404 | I43: 70
A44: 2022010399 | B44: 邱绮慧 | C44: 80.77560976 | D44: 43 | E44: =VLOOKUP(A44,专业排名汇总表!D39:AB204,25,0) -> 88.0181 | H44: 2022010405 | I44: 49
A45: 2022010494 | B45: 唐樱菲 | C45: 82.73647059 | D45: 44 | E45: =VLOOKUP(A45,专业排名汇总表!D137:AB302,25,0) -> 87.9497 | H45: 2022010406 | I45: 41
A46: 2022010429 | B46: 程实 | C46: 83.90823529 | D46: 45 | E46: =VLOOKUP(A46,专业排名汇总表!D69:AB234,25,0) -> 87.8722 | H46: 2022010407 | I46: 20
A47: 2022010456 | B47: 吴金琪 | C47: 87.31764706 | D47: 46 | E47: =VLOOKUP(A47,专业排名汇总表!D96:AB261,25,0) ->  | H47: 2022010408 | I47: 15
A48: 2022010390 | B48: 申溱 | C48: 84.99764706 | D48: 47 | E48: =VLOOKUP(A48,专业排名汇总表!D28:AB193,25,0) -> 87.7708 | H48: 2022010409 | I48: 97
A49: 2022010446 | B49: 金立民 | C49: 77.31529412 | D49: 48 | E49: =VLOOKUP(A49,专业排名汇总表!D86:AB251,25,0) -> 87.5604 | H49: 2022010410 | I49: 124
A50: 2022010405 | B50: 李子敬 | C50: 82.0775 | D50: 49 | E50: =VLOOKUP(A50,专业排名汇总表!D45:AB210,25,0) -> 89.3228 | H50: 2022010411 | I50: 128
A51: 2022010394 | B51: 张之翼 | C51: 83.33411765 | D51: 50 | E51: =VLOOKUP(A51,专业排名汇总表!D32:AB197,25,0) -> 87.4766 | H51: 2022010412 | I51: 51
A52: 2022010412 | B52: 代肖彤 | C52: 85.27529412 | D52: 51 | E52: =VLOOKUP(A52,专业排名汇总表!D52:AB217,25,0) -> 87.4309 | H52: 2022010413 | I52: 131
A53: 2022010496 | B53: 张鑫 | C53: 82.06829268 | D53: 52 | E53: =VLOOKUP(A53,专业排名汇总表!D139:AB304,25,0) -> 87.4140 | H53: 2022010414 | I53: 101
A54: 2022010486 | B54: 邵科元 | C54: 82.21219512 | D54: 53 | E54: =VLOOKUP(A54,专业排名汇总表!D127:AB292,25,0) -> 87.3016 | H54: 2022010417 | I54: 146
A55: 2022010364 | B55: 张姝瑶 | C55: 82.58823529 | D55: 54 | E55: =VLOOKUP(A55,专业排名汇总表!D3:AB168,25,0) -> 87.1282 | H55: 2022010418 | I55: 129
A56: 2022010499 | B56: 曹炜曼 | C56: 82.19294118 | D56: 55 | E56: =VLOOKUP(A56,专业排名汇总表!D142:AB307,25,0) -> 86.9977 | H56: 2022010419 | I56: 85
A57: 2022010512 | B57: 陈俊逸 | C57: 84.94823529 | D57: 56 | E57: =VLOOKUP(A57,专业排名汇总表!D155:AB320,25,0) -> 86.9789 | H57: 2022010420 | I57: 150
A58: 2022010366 | B58: 张璐昕 | C58: 81.18 | D58: 57 | E58: =VLOOKUP(A58,专业排名汇总表!D5:AB170,25,0) -> 88.5590 | H58: 2022010421 | I58: 77
A59: 2022010500 | B59: 马倩 | C59: 83.31764706 | D59: 58 | E59: =VLOOKUP(A59,专业排名汇总表!D143:AB308,25,0) -> 86.9207 | H59: 2022010422 | I59: 34
A60: 2022010513 | B60: 陈心 | C60: 85.54878049 | D60: 59 | E60: =VLOOKUP(A60,专业排名汇总表!D156:AB321,25,0) ->  | H60: 2022010423 | I60: 110
A61: 2022010389 | B61: 牛浩镔 | C61: 77.01428571 | D61: 60 | E61: =VLOOKUP(A61,专业排名汇总表!D27:AB192,25,0) -> 86.7869 | H61: 2022010424 | I61: 133
A62: 2022010490 | B62: 严臻睿 | C62: 85.45647059 | D62: 61 | E62: =VLOOKUP(A62,专业排名汇总表!D131:AB296,25,0) ->  | H62: 2022010425 | I62: 137
A63: 2022010503 | B63: 袁祺瑞 | C63: 81.95121951 | D63: 62 | E63: =VLOOKUP(A63,专业排名汇总表!D146:AB311,25,0) -> 86.5522 | H63: 2022010426 | I63: 108
A64: 2022010492 | B64: 钮缨雪 | C64: 81.87073171 | D64: 63 | E64: =VLOOKUP(A64,专业排名汇总表!D135:AB300,25,0) -> 87.7823 | H64: 2022010427 | I64: 127
A65: 2022010468 | B65: 吴忆 | C65: 77.52941176 | D65: 64 | E65: =VLOOKUP(A65,专业排名汇总表!D109:AB274,25,0) -> 86.3794 | H65: 2022012313 | I65: 155
A66: 2022010506 | B66: 张席地 | C66: 80.28 | D66: 65 | E66: =VLOOKUP(A66,专业排名汇总表!D149:AB314,25,0) -> 87.6917 | H66: 2022012314 | I66: 166
A67: 2022010493 | B67: 付锦依 | C67: 80.96341463 | D67: 66 | E67: =VLOOKUP(A67,专业排名汇总表!D136:AB301,25,0) -> 86.2577 | H67: 2022010428 | I67: =VLOOKUP(H:H,A:D,4,0) -> 152
A68: 2022010501 | B68: 屈芷晴 | C68: 79.01882353 | D68: 67 | E68: =VLOOKUP(A68,专业排名汇总表!D144:AB309,25,0) -> 87.9021 | H68: 2022010429 | I68: 45
A69: 2022010431 | B69: 贺婕 | C69: 84.42352941 | D69: 68 | E69: =VLOOKUP(A69,专业排名汇总表!D71:AB236,25,0) -> 87.8376 | H69: 2022010430 | I69: 69
A70: 2022010430 | B70: 马瑜含 | C70: 78.71294118 | D70: 69 | E70: =VLOOKUP(A70,专业排名汇总表!D70:AB235,25,0) -> 86.9934 | H70: 2022010431 | I70: 68
A71: 2022010404 | B71: 付晨汐 | C71: 80.39268293 | D71: 70 | E71: =VLOOKUP(A71,专业排名汇总表!D44:AB209,25,0) -> 85.9701 | H71: 2022010432 | I71: 99
A72: 2022010465 | B72: 陈飞月 | C72: 79.95529412 | D72: 71 | E72: =VLOOKUP(A72,专业排名汇总表!D106:AB271,25,0) -> 85.8535 | H72: 2022010433 | I72: 5
A73: 2022010438 | B73: 张涵婷 | C73: 81.68235294 | D73: 72 | E73: =VLOOKUP(A73,专业排名汇总表!D78:AB243,25,0) -> 85.8408 | H73: 2022010434 | I73: 3
A74: 2022010471 | B74: 张支铭 | C74: 79.91058824 | D74: 73 | E74: =VLOOKUP(A74,专业排名汇总表!D112:AB277,25,0) -> 85.7707 | H74: 2022010435 | I74: 100
A75: 2022010384 | B75: 吴立新 | C75: 85.11764706 | D75: 74 | E75: =VLOOKUP(A75,专业排名汇总表!D22:AB187,25,0) ->  | H75: 2022010436 | I75: 17
A76: 2022010488 | B76: 王佳航 | C76: 82.18 | D76: 75 | E76: =VLOOKUP(A76,专业排名汇总表!D129:AB294,25,0) -> 86.4217 | H76: 2022010437 | I76: 115
A77: 2022010367 | B77: 周芹 | C77: 78.38352941 | D77: 76 | E77: =VLOOKUP(A77,专业排名汇总表!D6:AB171,25,0) -> 84.5789 | H77: 2022010438 | I77: 72
A78: 2022010421 | B78: 季磊 | C78: 79.12470588 | D78: 77 | E78: =VLOOKUP(A78,专业排名汇总表!D59:AB224,25,0) -> 85.2316 | H78: 2022010439 | I78: 112
A79: 2022010445 | B79: 赵国平 | C79: 79.56941176 | D79: 78 | E79: =VLOOKUP(A79,专业排名汇总表!D85:AB250,25,0) -> 85.8001 | H79: 2022010440 | I79: 102
A80: 2022010372 | B80: 史佳悦 | C80: 80.94117647 | D80: 79 | E80: =VLOOKUP(A80,专业排名汇总表!D11:AB176,25,0) -> 84.9829 | H80: 2022010441 | I80: 83
A81: 2022010382 | B81: 张铸 | C81: 82.16941176 | D81: 80 | E81: =VLOOKUP(A81,专业排名汇总表!D20:AB185,25,0) -> 85.4777 | H81: 2022010442 | I81: 141
A82: 2022010469 | B82: 许馨月 | C82: 79.81176471 | D82: 81 | E82: =VLOOKUP(A82,专业排名汇总表!D110:AB275,25,0) -> 84.6008 | H82: 2022010443 | I82: 89
A83: 2022010481 | B83: 施孔君 | C83: 74.97560976 | D83: 82 | E83: =VLOOKUP(A83,专业排名汇总表!D122:AB287,25,0) -> 85.3754 | H83: 2022010444 | I83: 105
A84: 2022010441 | B84: 白兆 | C84: 81.94588235 | D84: 83 | E84: =VLOOKUP(A84,专业排名汇总表!D81:AB246,25,0) ->  | H84: 2022010445 | I84: 78
A85: 2022010464 | B85: 邓姣 | C85: 77.15365854 | D85: 84 | E85: =VLOOKUP(A85,专业排名汇总表!D105:AB270,25,0) -> 86.0101 | H85: 2022010446 | I85: 48
A86: 2022010419 | B86: 史国柱 | C86: 78.63529412 | D86: 85 | E86: =VLOOKUP(A86,专业排名汇总表!D57:AB222,25,0) -> 84.3893 | H86: 2022010447 | I86: 113
A87: 2022012312 | B87: 徐峥 | C87: 79.50823529 | D87: 86 | E87: =VLOOKUP(A87,专业排名汇总表!D35:AB200,25,0) ->  | H87: 2022010448 | I87: 37
A88: 2022010467 | B88: 石彩君 | C88: 78.73647059 | D88: 87 | E88: =VLOOKUP(A88,专业排名汇总表!D108:AB273,25,0) -> 84.7495 | H88: 2022010449 | I88: 35
A89: 2022010489 | B89: 谢林洲 | C89: 77.22352941 | D89: 88 | E89: =VLOOKUP(A89,专业排名汇总表!D130:AB295,25,0) -> 84.6054 | H89: 2022010450 | I89: 158
A90: 2022010443 | B90: 杨志文 | C90: 79.40941176 | D90: 89 | E90: =VLOOKUP(A90,专业排名汇总表!D83:AB248,25,0) ->  | H90: 2022010451 | I90: 16
A91: 2022010483 | B91: 李浩永 | C91: 78.20470588 | D91: 90 | E91: =VLOOKUP(A91,专业排名汇总表!D124:AB289,25,0) -> 83.5989 | H91: 2022010452 | I91: 14
A92: 2022010379 | B92: 孙科 | C92: 78.40235294 | D92: 91 | E92: =VLOOKUP(A92,专业排名汇总表!D17:AB182,25,0) ->  | H92: 2022010453 | I92: 136
A93: 2022010507 | B93: 马凯园 | C93: 78.90352941 | D93: 92 | E93: =VLOOKUP(A93,专业排名汇总表!D150:AB315,25,0) -> 83.5214 | H93: 2022010454 | I93: 36
A94: 2022010371 | B94: 何丽鸿 | C94: 79.39294118 | D94: 93 | E94: =VLOOKUP(A94,专业排名汇总表!D10:AB175,25,0) -> 83.5196 | H94: 2022010455 | I94: 4
A95: 2022010487 | B95: 涂景豪 | C95: 77.91764706 | D95: 94 | E95: =VLOOKUP(A95,专业排名汇总表!D128:AB293,25,0) -> 83.4928 | H95: 2022010456 | I95: 46
A96: 2022010522 | B96: 熊俊程 | C96: 84.6097561 | D96: 95 | E96: =VLOOKUP(A96,专业排名汇总表!D165:AB330,25,0) ->  | H96: 2022010457 | I96: 140
A97: 2022010477 | B97: 张帅 | C97: 79.31764706 | D97: 96 | E97: =VLOOKUP(A97,专业排名汇总表!D118:AB283,25,0) ->  | H97: 2022010458 | I97: 117
A98: 2022010409 | B98: 周家艺 | C98: 78.54117647 | D98: 97 | E98: =VLOOKUP(A98,专业排名汇总表!D49:AB214,25,0) -> 83.2521 | H98: 2022010459 | I98: 11
A99: 2022010377 | B99: 刘超 | C99: 81.25176471 | D99: 98 | E99: =VLOOKUP(A99,专业排名汇总表!D15:AB180,25,0) ->  | H99: 2022012316 | I99: 116
A100: 2022010432 | B100: 刘雨佳 | C100: 78.46352941 | D100: 99 | E100: =VLOOKUP(A100,专业排名汇总表!D72:AB237,25,0) -> 82.9982 | H100: 2022010460 | I100: 151
A101: 2022010435 | B101: 秦婧瑶 | C101: 77.98823529 | D101: 100 | E101: =VLOOKUP(A101,专业排名汇总表!D75:AB240,25,0) -> 82.8138 | H101: 2022010461 | I101: 1
A102: 2022010414 | B102: 潘恒懿 | C102: 79.81176471 | D102: 101 | E102: =VLOOKUP(A102,专业排名汇总表!D54:AB219,25,0) ->  | H102: 2022010462 | I102: 147
A103: 2022010440 | B103: 黄颖聪 | C103: 79.24705882 | D103: 102 | E103: =VLOOKUP(A103,专业排名汇总表!D80:AB245,25,0) ->  | H103: 2022010463 | I103: 29
A104: 2022010369 | B104: 李越 | C104: 76.54117647 | D104: 103 | E104: =VLOOKUP(A104,专业排名汇总表!D8:AB173,25,0) -> 82.4517 | H104: 2022010464 | I104: 84
A105: 2022010480 | B105: 杨明涛 | C105: 77.12941176 | D105: 104 | E105: =VLOOKUP(A105,专业排名汇总表!D121:AB286,25,0) -> 82.7754 | H105: 2022010465 | I105: 71
A106: 2022010444 | B106: 汪洋 | C106: 77.85853659 | D106: 105 | E106: =VLOOKUP(A106,专业排名汇总表!D84:AB249,25,0) -> 82.3327 | H106: 2022010466 | I106: 9
A107: 2022010473 | B107: 刘源兴 | C107: 76.85176471 | D107: 106 | E107: =VLOOKUP(A107,专业排名汇总表!D114:AB279,25,0) -> 82.1879 | H107: 2022010467 | I107: 87
A108: 2022010476 | B108: 何岩松 | C108: 75.76705882 | D108: 107 | E108: =VLOOKUP(A108,专业排名汇总表!D117:AB282,25,0) -> 82.1485 | H108: 2022010468 | I108: 64
A109: 2022010426 | B109: 赵群 | C109: 80.32 | D109: 108 | E109: =VLOOKUP(A109,专业排名汇总表!D64:AB229,25,0) ->  | H109: 2022010469 | I109: 81
A110: 2022010388 | B110: 缪祥麟 | C110: 75.13170732 | D110: 109 | E110: =VLOOKUP(A110,专业排名汇总表!D26:AB191,25,0) -> 81.9433 | H110: 2022010470 | I110: 24
A111: 2022010423 | B111: 汪礼俊 | C111: 74.83529412 | D111: 110 | E111: =VLOOKUP(A111,专业排名汇总表!D61:AB226,25,0) -> 81.8177 | H111: 2022010471 | I111: 73
A112: 2022010510 | B112: 李君成 | C112: 81.37804878 | D112: 111 | E112: =VLOOKUP(A112,专业排名汇总表!D153:AB318,25,0) -> 81.8010 | H112: 2022010472 | I112: 142
A113: 2022010439 | B113: 张心怡 | C113: 74.60470588 | D113: 112 | E113: =VLOOKUP(A113,专业排名汇总表!D79:AB244,25,0) -> 81.6848 | H113: 2022010473 | I113: 106
A114: 2022010447 | B114: 王冰宇 | C114: 78.84390244 | D114: 113 | E114: =VLOOKUP(A114,专业排名汇总表!D87:AB252,25,0) ->  | H114: 2022010474 | I114: 144
A115: 2022010511 | B115: 罗小刚 | C115: 75.41176471 | D115: 114 | E115: =VLOOKUP(A115,专业排名汇总表!D154:AB319,25,0) -> 81.6070 | H115: 2022010475 | I115: 139
A116: 2022010437 | B116: 王晓弘 | C116: 76.48470588 | D116: 115 | E116: =VLOOKUP(A116,专业排名汇总表!D77:AB242,25,0) -> 82.2231 | H116: 2022010476 | I116: 107
A117: 2022012316 | B117: 陈语 | C117: 73.24705882 | D117: 116 | E117: =VLOOKUP(A117,专业排名汇总表!D100:AB265,25,0) -> 81.8568 | H117: 2022010477 | I117: 96
A118: 2022010458 | B118: 赵帅 | C118: 78.32 | D118: 117 | E118: =VLOOKUP(A118,专业排名汇总表!D98:AB263,25,0) ->  | H118: 2022010478 | I118: 32
A119: 2022010520 | B119: 孙祖麟 | C119: 73.7975 | D119: 118 | E119: =VLOOKUP(A119,专业排名汇总表!D163:AB328,25,0) -> 82.9560 | H119: 2022010479 | I119: 120
A120: 2022012319 | B120: 李文杰 | C120: 74.49512195 | D120: 119 | E120: =VLOOKUP(A120,专业排名汇总表!D167:AB332,25,0) -> 80.9722 | H120: 2022010480 | I120: 104
A121: 2022010479 | B121: 杨广军 | C121: 74.38823529 | D121: 120 | E121: =VLOOKUP(A121,专业排名汇总表!D120:AB285,25,0) -> 82.0021 | H121: 2022010481 | I121: 82
A122: 2022010396 | B122: 邵兰贺 | C122: 74.74878049 | D122: 121 | E122: =VLOOKUP(A122,专业排名汇总表!D36:AB201,25,0) ->  | H122: 2022010482 | I122: 33
A123: 2022010403 | B123: 成思宇 | C123: 77.46341463 | D123: 122 | E123: =VLOOKUP(A123,专业排名汇总表!D43:AB208,25,0) ->  | H123: 2022010483 | I123: 90
A124: 2022010497 | B124: 达娃卓玛 | C124: 75.74390244 | D124: 123 | E124: =VLOOKUP(A124,专业排名汇总表!D140:AB305,25,0) -> 80.3196 | H124: 2022010484 | I124: 125
A125: 2022010410 | B125: 王子路 | C125: 71.34878049 | D125: 124 | E125: =VLOOKUP(A125,专业排名汇总表!D50:AB215,25,0) -> 80.0166 | H125: 2022010485 | I125: 130
A126: 2022010484 | B126: 李芃钰 | C126: 71.1804878 | D126: 125 | E126: =VLOOKUP(A126,专业排名汇总表!D125:AB290,25,0) -> 79.6837 | H126: 2022010486 | I126: 53
A127: 2022010505 | B127: 叶斯波力·叶尔生 | C127: 71.3902439 | D127: 126 | E127: =VLOOKUP(A127,专业排名汇总表!D148:AB313,25,0) -> 81.2364 | H127: 2022010487 | I127: 94
A128: 2022010427 | B128: 周慧林 | C128: 77.69882353 | D128: 127 | E128: =VLOOKUP(A128,专业排名汇总表!D65:AB230,25,0) ->  | H128: 2022010488 | I128: 75
A129: 2022010411 | B129: 姚锦栋 | C129: 73.44705882 | D129: 128 | E129: =VLOOKUP(A129,专业排名汇总表!D51:AB216,25,0) -> 79.5453 | H129: 2022010489 | I129: 88
A130: 2022010418 | B130: 王明堃 | C130: 74.63529412 | D130: 129 | E130: =VLOOKUP(A130,专业排名汇总表!D56:AB221,25,0) -> 79.8955 | H130: 2022010490 | I130: 61
A131: 2022010485 | B131: 刘帅杰 | C131: 71.54390244 | D131: 130 | E131: =VLOOKUP(A131,专业排名汇总表!D126:AB291,25,0) -> 79.4495 | H131: 2022010491 | I131: =VLOOKUP(H:H,A:D,4,0) -> 12
A132: 2022010413 | B132: 陈恒宇 | C132: 74.73411765 | D132: 131 | E132: =VLOOKUP(A132,专业排名汇总表!D53:AB218,25,0) -> 79.4190 | H132: 2022012317 | I132: 149
A133: 2022010504 | B133: 李宇翔 | C133: 75.22352941 | D133: 132 | E133: =VLOOKUP(A133,专业排名汇总表!D147:AB312,25,0) -> 79.3746 | H133: 2022012318 | I133: 156
A134: 2022010424 | B134: 席振昌 | C134: 74.90117647 | D134: 133 | E134: =VLOOKUP(A134,专业排名汇总表!D62:AB227,25,0) ->  | H134: 2022010492 | I134: 63
A135: 2022010398 | B135: 杨慧 | C135: 69.30487805 | D135: 134 | E135: =VLOOKUP(A135,专业排名汇总表!D38:AB203,25,0) -> 79.2695 | H135: 2022010493 | I135: 66
A136: 2022012311 | B136: 布威麦尔耶姆·麦麦提图尔荪 | C136: 71.83764706 | D136: 135 | E136: =VLOOKUP(A136,专业排名汇总表!D34:AB199,25,0) -> 79.1129 | H136: 2022010494 | I136: 44
A137: 2022010453 | B137: 李成歆 | C137: 75.77176471 | D137: 136 | E137: =VLOOKUP(A137,专业排名汇总表!D93:AB258,25,0) ->  | H137: 2022010495 | I137: 157
A138: 2022010425 | B138: 闫杨奇昊 | C138: 73.94352941 | D138: 137 | E138: =VLOOKUP(A138,专业排名汇总表!D63:AB228,25,0) -> 78.5175 | H138: 2022010496 | I138: 52
A139: 2022010509 | B139: 李京运 | C139: 71.63414634 | D139: 138 | E139: =VLOOKUP(A139,专业排名汇总表!D152:AB317,25,0) -> 78.4055 | H139: 2022010497 | I139: 123
A140: 2022010475 | B140: 蔡进鹏 | C140: 74.59756098 | D140: 139 | E140: =VLOOKUP(A140,专业排名汇总表!D116:AB281,25,0) -> 78.3156 | H140: 2022010498 | I140: 2
A141: 2022010457 | B141: 杨乐辰 | C141: 73.24390244 | D141: 140 | E141: =VLOOKUP(A141,专业排名汇总表!D97:AB262,25,0) -> 78.2853 | H141: 2022010499 | I141: 55
A142: 2022010442 | B142: 尹泽 | C142: 72 | D142: 141 | E142: =VLOOKUP(A142,专业排名汇总表!D82:AB247,25,0) -> 78.2803 | H142: 2022010500 | I142: 58
A143: 2022010472 | B143: 王奕喆 | C143: 71.35121951 | D143: 142 | E143: =VLOOKUP(A143,专业排名汇总表!D113:AB278,25,0) -> 78.2376 | H143: 2022010501 | I143: 67
A144: 2022010391 | B144: 王禹程 | C144: 70.0195122 | D144: 143 | E144: =VLOOKUP(A144,专业排名汇总表!D29:AB194,25,0) ->  | H144: 2022010502 | I144: 23
A145: 2022010474 | B145: 杨志远 | C145: 75.03658537 | D145: 144 | E145: =VLOOKUP(A145,专业排名汇总表!D115:AB280,25,0) ->  | H145: 2022010503 | I145: 62
A146: 2022010376 | B146: 刘珣 | C146: 73.69512195 | D146: 145 | E146: =VLOOKUP(A146,专业排名汇总表!D14:AB179,25,0) ->  | H146: 2022010504 | I146: 132
A147: 2022010417 | B147: 段少坤 | C147: 71.44878049 | D147: 146 | E147: =VLOOKUP(A147,专业排名汇总表!D55:AB220,25,0) ->  | H147: 2022010505 | I147: 126
A148: 2022010462 | B148: 胡咪 | C148: 71.41463415 | D148: 147 | E148: =VLOOKUP(A148,专业排名汇总表!D103:AB268,25,0) ->  | H148: 2022010506 | I148: 65
A149: 2022010523 | B149: 章俊阳 | C149: 70.8097561 | D149: 148 | E149: =VLOOKUP(A149,专业排名汇总表!D166:AB331,25,0) ->  | H149: 2022010507 | I149: 92
A150: 2022012317 | B150: 萨比尔·库尔班江 | C150: 68.59756098 | D150: 149 | E150: =VLOOKUP(A150,专业排名汇总表!D133:AB298,25,0) -> 76.7346 | H150: 2022010508 | I150: 165
A151: 2022010420 | B151: 曹坤阳 | C151: 70.6195122 | D151: 150 | E151: =VLOOKUP(A151,专业排名汇总表!D58:AB223,25,0) ->  | H151: 2022010509 | I151: 138
A152: 2022010460 | B152: 努尔斯巴·买提库尔班 | C152: 68.70588235 | D152: 151 | E152: =VLOOKUP(A152,专业排名汇总表!D101:AB266,25,0) ->  | H152: 2022010510 | I152: 111
A153: 2022010428 | B153: 马芬 | C153: 64.66341463 | D153: 152 | E153: =VLOOKUP(A153,专业排名汇总表!D68:AB233,25,0) -> 76.1657 | H153: 2022010511 | I153: 114
A154: 2022010517 | B154: 郝信淳 | C154: 71.24146341 | D154: 153 | E154: =VLOOKUP(A154,专业排名汇总表!D160:AB325,25,0) ->  | H154: 2022010512 | I154: 56
A155: 2022012320 | B155: 阿布杜拉·居乃都拉 | C155: 70.93902439 | D155: 154 | E155: =VLOOKUP(A155,专业排名汇总表!D168:AB333,25,0) ->  | H155: 2022010513 | I155: 59
A156: 2022012313 | B156: 巴合加娜提·加冷 | C156: 69.96341463 | D156: 155 | E156: =VLOOKUP(A156,专业排名汇总表!D66:AB231,25,0) ->  | H156: 2022010514 | I156: 31
A157: 2022012318 | B157: 阿尔帕提·阿卜杜合力力 | C157: 64.75609756 | D157: 156 | E157: =VLOOKUP(A157,专业排名汇总表!D134:AB299,25,0) -> 75.5803 | H157: 2022010515 | I157: 160
A158: 2022010495 | B158: 何欣怡 | C158: 70.43902439 | D158: 157 | E158: =VLOOKUP(A158,专业排名汇总表!D138:AB303,25,0) ->  | H158: 2022010516 | I158: 30
A159: 2022010450 | B159: 阿坚全 | C159: 65.1097561 | D159: 158 | E159: =VLOOKUP(A159,专业排名汇总表!D90:AB255,25,0) -> 73.7037 | H159: 2022010517 | I159: 153
A160: 2022010381 | B160: 耿智盖灵 | C160: 64 | D160: 159 | E160: =VLOOKUP(A160,专业排名汇总表!D19:AB184,25,0) ->  | H160: 2022010518 | I160: 42
A161: 2022010515 | B161: 郭家栋 | C161: 67.55853659 | D161: 160 | E161: =VLOOKUP(A161,专业排名汇总表!D158:AB323,25,0) ->  | H161: 2022010519 | I161: 7
A162: 2022010370 | B162: 马海霞 | C162: 72.07058824 | D162: 161 | E162: =VLOOKUP(A162,专业排名汇总表!D9:AB174,25,0) -> 72.4004 | H162: 2022010520 | I162: 118
A163: 2022010395 | B163: 赵志帆 | C163: 64.75609756 | D163: 162 | E163: =VLOOKUP(A163,专业排名汇总表!D33:AB198,25,0) -> 70.5404 | H163: 2022010521 | I163: 164
A164: 2022010380 | B164: 张茂霖 | C164: 61.51219512 | D164: 163 | E164: =VLOOKUP(A164,专业排名汇总表!D18:AB183,25,0) ->  | H164: 2022010522 | I164: 95
A165: 2022010521 | B165: 吴振宇 | C165: 57.32439024 | D165: 164 | E165: =VLOOKUP(A165,专业排名汇总表!D164:AB329,25,0) -> 68.2660 | H165: 2022010523 | I165: 148
A166: 2022010508 | B166: 郝政凯 | C166: 54.85365854 | D166: 165 | E166: =VLOOKUP(A166,专业排名汇总表!D151:AB316,25,0) ->  | H166: 2022012319 | I166: 119
A167: 2022012314 | B167: 努尔兰·吐尔军 | C167: 46.98780488 | D167: 166 | E167: =VLOOKUP(A167,专业排名汇总表!D67:AB232,25,0) -> 60.7013 | H167: 2022012320 | I167: 154
